Cogmind - Beta 9.6 @@@ ROGUE MODE // 2020.09.02 @ 23:17:59 // Winter2019/RPGLIKE Player: Hermelin Result: Escaped! Performance ------------- Evolutions (9) 4500 Regions Visited (35) 7000 Robots Destroyed (519) 2595 Value Destroyed (30093) 30093 Prototype IDs (148) 2960 Alien Tech Used (9) 1800 Bonus (30012) 30012 TOTAL SCORE: 78960 Bonus ------- Triggered High Security 500 Triggered Max Security 1000 High Alert Combat Kills 10691 Follower Combat Kills 2452 Entered Garrisons 2000 Used RIF Installer 5000 Network Hubs Disabled 1000 Aligned with FarCom 300 Met Zhirov 300 Built Enhanced Grunts 300 A7 Reached Mainframe 300 Met R17 at Cetus 500 Read Decrypted Archives 300 Found Hidden Lab 3000 Hacked Protovariant 1000 Met R17 at Research 2000 Scanned by Researcher 500 Win 3000 Friendly Fire -4131 Cogmind --------- Core Integrity 1161/1250 Matter 350/350 Energy 844/850 System Corruption 3% Temperature Cool (6) Movement Flying (29) Location To Epsilon Eridani Parts ------- > --- POWER (2) -------- Cooled Fission Core Improved Quantum Reactor > --- PROPULSION (5) --- Cooled Field Propulsion Drive Impulse Thruster Array Cooled Q-thruster Cooled Q-thruster > --- UTILITY (13) ----- Inertial Stasis Machine Experimental Signal Interpreter Experimental Terrain Scanner Experimental Targeting Computer Experimental Target Analyzer Experimental Core Analyzer Advanced Armor Integrity Analyzer Advanced Weapon Cycler Experimental Powered Armor AEGIS Remote Shield Quantum Router Relay Coupler [Grunt] (78) System Restoration Module > --- WEAPON (4) ------- Sigix Quantum Sheargun Cooled Nova Cannon 8R-AWN's Boregun > --- INVENTORY (7) ---- Experimental Matter Compressor (500) Experimental ECM Suite Advanced Reaction Control System SHELL Armor Multirail Peak State ------------ > --- POWER ------------ Cooled Fission Core Improved Quantum Reactor > --- PROPULSION ------- Cooled Field Propulsion Drive Impulse Thruster Array Cooled Q-thruster Cooled Q-thruster > --- UTILITY ---------- Inertial Stasis Machine Experimental Signal Interpreter Experimental Terrain Scanner Experimental Targeting Computer Experimental Target Analyzer Experimental Core Analyzer Advanced Armor Integrity Analyzer Advanced Weapon Cycler Advanced Reaction Control System Experimental Powered Armor AEGIS Remote Shield Quantum Router Relay Coupler [Grunt] > --- WEAPON ----------- Sigix Quantum Sheargun Cooled Nova Cannon 8R-AWN's Boregun Multirail > --- INVENTORY -------- Experimental Matter Compressor Experimental ECM Suite SHELL Armor System Restoration Module Transdimensional Reconstructor [Rating: 216] Favorites ----------- Power Cold Fusion Reactor Engine Light Ion Engine Power Core Cooled Fission Core Reactor Cold Fusion Reactor Propulsion Improved VTOL Module Treads Centrium Heavy Treads Leg Advanced Myomer Leg Wheel Armored Wheel Flight Unit Improved VTOL Module Utility Experimental Targeting Computer Device Advanced Weapon Cycler Storage Experimental Matter Compressor Processor Experimental Targeting Computer Hackware Advanced System Shield Protection Experimental Powered Armor Weapon 8R-AWN's Boregun Energy Gun Sigix Quantum Sheargun Energy Cannon Cooled Nova Cannon Ballistic Gun 8R-AWN's Boregun Ballistic Cannon Compact Linear Accelerator Launcher Advanced EMP Blaster Slashing Weapon Vibroblade Special Melee Weapon Datajack Build | -11 -10 -10 -10 -9 -8 -8 -8 -8 -7 -7 -7 -7 -6 -6 -6 -6 -6 -5 -5 -4 -4 -4 -4 -3 -3 -3 -2 -2 -2 -2 -2 -1 -1 -1 -1 ------- Run | Scr Mat Min Exi Min Mat Gar Mat Gar Fac Gar Fac Gar Fac Ext Cet Arc Hub Fac Gar Fac Gar Fac Gar Res Arm Lab Res Tes Gar Sec Gar Acc Gar Acc Com Slots Evolved 20 | 3 2 . . . 2 1 1 1 . 1 1 . . 1 . . . 1 . 1 1 . . . 1 . 1 1 . . . . 1 . . Power 1 | . . . . . . . . . . . . . . . . . . . . 1 . . . . . . . . . . . . . . . Propulsion 4 | 1 . . . . 1 1 . . . . . . . . . . . . . . . . . . . . . 1 . . . . . . . Utility 12 | 1 2 . . . 1 . 1 1 . 1 1 . . 1 . . . 1 . . 1 . . . 1 . . . . . . . . . . Weapon 3 | 1 . . . . . . . . . . . . . . . . . . . . . . . . . . 1 . . . . . 1 . . Parts Attached 223 | 5 21 2 14 . 8 6 10 2 3 2 10 1 14 3 15 . 5 5 . 4 5 5 1 8 15 6 1 30 . 13 2 1 2 1 3 Power 11 | 1 1 . 2 . 1 . . . . . . . 1 . . . . 2 . 1 . . . . 1 . . 1 . . . . . . . Engine 2 | 1 1 . . . . . . . . . . . . . . . . . . . . . . . . . . . . . . . . . . Core 4 | . . . 1 . . . . . . . . . . . . . . 1 . 1 . . . . 1 . . . . . . . . . . Reactor 5 | . . . 1 . 1 . . . . . . . 1 . . . . 1 . . . . . . . . . 1 . . . . . . . Propulsion 28 | . 5 . 2 . 2 4 4 . . . . . . . 3 . 2 . . . . 1 . . . . . 5 . . . . . . . Treads 1 | . . . . . . . . . . . . . . . 1 . . . . . . . . . . . . . . . . . . . . Leg 4 | . . . 2 . 2 . . . . . . . . . . . . . . . . . . . . . . . . . . . . . . Wheel 2 | . 2 . . . . . . . . . . . . . . . . . . . . . . . . . . . . . . . . . . Hover . | . . . . . . . . . . . . . . . . . . . . . . . . . . . . . . . . . . . . Flight 21 | . 3 . . . . 4 4 . . . . . . . 2 . 2 . . . . 1 . . . . . 5 . . . . . . . Utility 133 | 2 6 2 4 . 3 . 4 2 3 2 9 . 12 3 9 . 3 3 . 3 3 4 1 7 9 3 . 18 . 12 1 1 . 1 3 Device 74 | 1 4 . 2 . 1 . 1 . 2 1 5 . 7 1 2 . . 2 . 2 1 1 1 5 8 1 . 12 . 10 . . . 1 3 Storage 4 | . . . . . . . . . . . . . . . 1 . . . . . . 1 . . . . . 1 . 1 . . . . . Processor 15 | 1 . 1 2 . . . . . . . . . 1 2 . . 1 . . 1 . . . 1 . . . 3 . 1 . 1 . . . Hackware 11 | . . . . . . . 1 1 . 1 1 . 1 . 2 . . . . . 1 . . . 1 1 . . . . 1 . . . . Protection 29 | . 2 1 . . 2 . 2 1 1 . 3 . 3 . 4 . 2 1 . . 1 2 . 1 . 1 . 2 . . . . . . . Artifact . | . . . . . . . . . . . . . . . . . . . . . . . . . . . . . . . . . . . . Weapon 51 | 2 9 . 6 . 2 2 2 . . . 1 1 1 . 3 . . . . . 2 . . 1 5 3 1 6 . 1 1 . 2 . . Energy Gun 4 | . . . 1 . 1 . . . . . . . . . . . . . . . . . . . . . . . . 1 1 . . . . Energy Cannon 8 | . . . 2 . . . . . . . . . . . . . . . . . . . . . . 2 . 3 . . . . 1 . . Ballistic Gun 26 | 2 5 . 3 . 1 2 . . . . 1 1 1 . 3 . . . . . 1 . . 1 2 1 . 1 . . . . 1 . . Ballistic Cannon 2 | . . . . . . . . . . . . . . . . . . . . . . . . . 1 . . 1 . . . . . . . Launcher 1 | . . . . . . . 1 . . . . . . . . . . . . . . . . . . . . . . . . . . . . Special Weapon . | . . . . . . . . . . . . . . . . . . . . . . . . . . . . . . . . . . . . Impact Weapon . | . . . . . . . . . . . . . . . . . . . . . . . . . . . . . . . . . . . . Slashing Weapon 5 | . . . . . . . . . . . . . . . . . . . . . 1 . . . 2 . 1 1 . . . . . . . Piercing Weapon . | . . . . . . . . . . . . . . . . . . . . . . . . . . . . . . . . . . . . Special Melee Weapon 5 | . 4 . . . . . 1 . . . . . . . . . . . . . . . . . . . . . . . . . . . . Unidentified Prototypes 44 | . . . . . . . 2 . . . . . 1 . 6 . 2 1 . . . 1 . 1 6 7 . 9 . 7 . . 1 . . Parts Lost 4 | . . . 2 . . . . . . . . . 1 . . . . . . . . . . 1 . . . . . . . . . . . Power . | . . . . . . . . . . . . . . . . . . . . . . . . . . . . . . . . . . . . Propulsion . | . . . . . . . . . . . . . . . . . . . . . . . . . . . . . . . . . . . . Utility 4 | . . . 2 . . . . . . . . . 1 . . . . . . . . . . 1 . . . . . . . . . . . Weapon . | . . . . . . . . . . . . . . . . . . . . . . . . . . . . . . . . . . . . Highest Loss Streak 2 | . . . 2 . . . . . . . . . 1 . . . . . . . . . . 1 . . . . . . . . . . . Average Slot Usage (%) 96 | . 98 100 94 88 89 88 92 99 100 100 100 100 99 97 99 100 99 99 100 100 100 100 100 99 100 97 100 92 95 94 95 95 95 95 94 Engine 1 | . 12 11 5 . . . . . . . . . . . . . . . . . . . . . . . . . . . . . . . . Core 2 | . . . 2 . . . . . . . . . . . . . . . . 4 5 5 5 5 9 9 9 6 4 4 4 4 4 4 4 Reactor 4 | . . . 2 11 10 8 7 7 7 6 6 6 6 5 5 5 5 4 5 5 5 5 5 5 . . . 2 4 4 4 4 4 4 4 Leg 2 | . . . 7 22 24 22 . . . . . . . . . . . . . . . . . . . . . . . . . . . . . Flight 18 | . 15 22 14 . . 4 32 29 28 26 25 25 25 23 22 23 22 22 22 21 20 20 20 20 19 19 18 14 17 17 17 17 16 16 16 Device 22 | . 27 20 19 22 20 17 12 14 14 18 25 25 20 18 18 23 23 24 27 26 24 20 20 20 25 25 27 26 30 26 21 21 20 20 19 Processor 16 | . 1 9 13 22 20 17 15 14 14 13 12 12 15 22 27 17 17 16 16 15 15 15 15 17 19 19 18 19 17 20 21 21 20 20 20 Hackware 6 | . . . . . . . 2 7 14 13 6 12 12 6 5 11 11 11 11 10 10 15 15 11 9 9 9 4 4 4 7 8 8 8 8 Protection 5 | . 3 13 11 . 4 8 7 8 7 6 6 6 5 5 5 5 5 4 5 5 7 9 10 9 4 4 4 4 4 4 4 4 4 4 4 Energy Gun 1 | . . . 1 11 9 5 . . . . . . . . . . . . . . . . . . . . . . . 1 4 4 4 4 4 Energy Cannon 1 | . . . 3 . . . . . . . . . . . . . . . . . . . . . . 1 4 4 4 4 4 4 4 4 4 Ballistic Gun 8 | . 22 11 8 . . 3 7 7 7 6 6 9 12 11 11 11 11 11 11 10 10 10 10 10 9 3 4 4 4 4 4 4 5 8 7 Special Melee Weapon 1 | . 3 11 4 . . . 1 7 7 6 6 3 . . . . . . . . . . . . . . . . . . . . . . . Naked Turns . | . . . . . . . . . . . . . . . . . . . . . . . . . . . . . . . . . . . . Heaviest Build 95 | 6 14 13 40 25 29 29 31 28 29 31 34 34 39 42 40 40 40 44 44 50 58 60 61 61 58 60 64 90 90 90 88 86 93 94 95 Greatest Support 104 | 8 29 13 55 55 60 60 34 34 34 34 34 34 39 39 60 44 46 46 46 62 62 64 64 64 64 64 64 104 103 103 103 103 103 103 103 Greatest Overweight (x) 2 | . 1 . 1 . . 1 . . . . . . . 2 2 . 1 . . . 1 . . . . . . 1 . . . . . . . Average Overweight (x) . | . . . . . . . . . . . . . . . . . . . . . . . . . . . . . . . . . . . . Largest Inventory Capacity 7 | 2 2 2 3 3 4 4 4 4 5 5 5 5 5 5 5 5 5 5 5 5 5 5 6 6 6 6 6 7 7 7 7 7 7 7 7 Average Capacity 5 | 1 2 2 2 3 3 4 4 4 4 5 5 5 5 5 5 5 5 5 5 5 5 5 5 6 6 6 6 6 7 7 7 7 7 7 7 Most Carried 7 | 1 2 2 3 3 4 4 4 4 5 5 5 5 5 5 5 5 5 5 5 5 5 5 6 6 6 6 6 7 7 7 7 7 7 7 7 Average Carried 4 | . 1 2 1 3 3 3 3 4 4 4 5 4 4 4 4 5 5 4 5 4 4 4 4 5 5 5 5 6 6 6 6 7 7 7 6 Final Capacity 7 | 2 2 2 3 3 4 4 4 4 5 5 5 5 5 5 5 5 5 5 5 5 5 5 6 6 6 6 6 7 7 7 7 7 7 7 7 Final Carried 7 | 1 2 2 3 3 4 4 4 4 5 5 5 5 5 5 5 5 5 5 5 5 5 5 6 6 6 6 6 7 7 7 7 7 7 7 7 Class Distribution -------------------- 52% | Hacker-Scout 13% | Scavenger-Scout 10% | Scavenger-Mutant 6% | Hacker-Mutant 5% | Hacker-Ninja 4% | Hacker-Sprinter 3% | Mutant Dominant Class ---------------- Mutant | -10/Materials Hacker-Mutant | -10/Mines Hacker-Mutant | -10/Exiles Scavenger-Mutant | -9/Mines Scavenger-Mutant | -8/Materials Scavenger-Mutant | -8/Garrison Scavenger-Sprinter | -8/Materials Hacker-Sprinter | -8/Garrison Hacker-Sprinter | -7/Factory Hacker-Sprinter | -7/Garrison Hacker-Ninja | -7/Factory Hacker-Ninja | -7/Garrison Hacker-Scout | -6/Factory Hacker-Scout | -6/Extension Hacker-Scout | -6/Cetus Hacker-Scout | -6/Archives Hacker-Scout | -6/Hub_04(d) Hacker-Scout | -5/Factory Hacker-Scout | -5/Garrison Hacker-Scout | -4/Factory Hacker-Scout | -4/Garrison Hacker-Scout | -4/Factory Hacker-Scout | -4/Garrison Scavenger-Scout | -3/Research Scavenger-Scout | -3/Armory Hacker-Scout | -3/Lab Hacker-Ninja | -2/Research Hacker-Scout | -2/Testing Scavenger-Scout | -2/Garrison Scavenger-Scout | -2/Section 7 Hacker-Scout | -2/Garrison Hacker-Scout | -1/Access Hacker-Scout | -1/Garrison Hacker-Scout | -1/Access Hacker-Scout | -1/Command Resources | -11 -10 -10 -10 -9 -8 -8 -8 -8 -7 -7 -7 -7 -6 -6 -6 -6 -6 -5 -5 -4 -4 -4 -4 -3 -3 -3 -2 -2 -2 -2 -2 -1 -1 -1 -1 ----------- Run | Scr Mat Min Exi Min Mat Gar Mat Gar Fac Gar Fac Gar Fac Ext Cet Arc Hub Fac Gar Fac Gar Fac Gar Res Arm Lab Res Tes Gar Sec Gar Acc Gar Acc Com Matter Collected 14794 | 288 519 17 264 . 122 114 340 160 154 272 468 172 693 693 490 54 381 433 44 305 766 526 1429 1392 745 . 140 780 824 706 490 100 242 96 575 Remotely . | . . . . . . . . . . . . . . . . . . . . . . . . . . . . . . . . . . . . Salvage Created 28545 | 157 1072 54 297 194 437 435 388 165 273 429 1023 489 1197 967 126 40 962 727 126 850 1100 323 2607 2206 1950 . 418 1856 1353 1012 1847 498 1268 257 1442 Parts 1626 | 11 54 3 63 12 37 32 21 11 18 25 52 19 56 61 10 10 58 55 6 40 85 18 117 121 100 . 20 75 90 49 103 23 62 21 88 Haulers Intercepted 13 | . 2 . . . 1 . 2 . 1 . . . 4 . . . 1 . . . . 1 . . . . 1 . . . . . . . . Recyclers Shooed 5 | . 1 . . . . . . . . . . . . . . . . . . 1 . . . 3 . . . . . . . . . . . Parts Field Recycled . | . . . . . . . . . . . . . . . . . . . . . . . . . . . . . . . . . . . . Retrieved Matter . | . . . . . . . . . . . . . . . . . . . . . . . . . . . . . . . . . . . . Parts Self-Destructed . | . . . . . . . . . . . . . . . . . . . . . . . . . . . . . . . . . . . . Prevented . | . . . . . . . . . . . . . . . . . . . . . . . . . . . . . . . . . . . . Kills | -11 -10 -10 -10 -9 -8 -8 -8 -8 -7 -7 -7 -7 -6 -6 -6 -6 -6 -5 -5 -4 -4 -4 -4 -3 -3 -3 -2 -2 -2 -2 -2 -1 -1 -1 -1 ------- Run | Scr Mat Min Exi Min Mat Gar Mat Gar Fac Gar Fac Gar Fac Ext Cet Arc Hub Fac Gar Fac Gar Fac Gar Res Arm Lab Res Tes Gar Sec Gar Acc Gar Acc Com Combat Hostiles Destroyed 436 | . 26 1 8 6 9 16 5 4 4 8 13 6 15 15 1 2 12 15 1 9 25 2 38 28 29 . 5 23 29 13 30 2 14 3 19 Guns 377 | . 26 1 8 6 8 16 5 4 4 8 13 6 15 15 1 2 11 13 1 9 25 2 38 28 29 . . 10 11 5 30 1 7 3 16 Cannons 54 | . . . . . . . . . . . . . . . . . . . . . . . . . . . 5 12 18 8 . 1 7 . 3 AOE 3 | . . . . . . . . . . . . . . . . . 1 2 . . . . . . . . . . . . . . . . . Classes Destroyed 27 | 2 5 . 3 1 3 1 1 . . . 1 . . 1 . . . . . . . . . . 3 . . 6 . . . . . . . Worker 9 | . 1 . . . 1 . 1 . . . 1 . . . . . . . . . . . . 2 . . . . . 2 . 1 . . . Builder 3 | . . . . . 1 . . . . . . . . 1 . . . . . . . . . . . . . 1 . . . . . . . Tunneler 5 | 4 . . . . . . . . 1 . . . . . . . . . . . . . . . . . . . . . . . . . . Hauler 13 | . 2 . . . 1 . 2 . 1 . . . 4 . . . 1 . . . . 1 . . . . 1 . . . . . . . . Recycler 6 | 1 . . . . . . . . . . 1 . . . . . . . . 2 . . . 1 . . . . . . . . . . 1 Mechanic 1 | . . . . . . . . . . . . . . . . . . . . . . . . . . . . 1 . . . . . . . Operator 3 | . . . . . . . 1 . . . 1 . . . . . 1 . . . . . . . . . . . . . . . . . . Drone 3 | . . . . . . . . . . . . . . . . . . . . . . . . . . . . 3 . . . . . . . Turret 1 | . . . 1 . . . . . . . . . . . . . . . . . . . . . . . . . . . . . . . . Watcher 31 | . 2 . . . 1 . . . . 1 1 . . 1 . . 3 1 . . . 2 . . 1 . 3 3 . 3 . 5 . 1 3 Swarmer 81 | . 9 . . . . 11 2 . . 5 . . . . . . 4 5 . . 12 . 11 3 . . . . 7 1 7 . . . 4 Saboteur 2 | . . . . . . . . . . . . . . . . . . . . . . . . . 2 . . . . . . . . . . Grunt 168 | . 17 1 . 5 6 2 1 1 3 1 7 2 11 9 . 2 2 5 . . 6 1 13 13 7 . . 3 13 5 19 2 9 . 2 Brawler 15 | . . . . 1 . . . . . . . . . 1 . . . . . . 1 . 3 1 4 . . 1 1 1 . . . . 1 Duelist 10 | . . . . . . 1 . 1 . . 1 . . . . . . . . . 1 . 2 . 2 . . 1 . . 1 . . . . Protector 1 | . . . . . . . . . . . . . . . . . . . . . . . . . 1 . . . . . . . . . . Researcher 2 | . . . . . . . . . . . . . . . . . . . . . . . . . . . . 2 . . . . . . . Sentry 69 | . . . . . 2 2 1 . 1 1 2 4 3 3 . . 6 5 1 3 3 1 2 4 4 . 2 1 3 4 4 . 1 2 4 Specialist 6 | . . . . . . . . . . . . . . . . . . . . . . . . . 4 . . 2 . . . . . . . Hunter 30 | . . . . . 1 . 1 2 . 1 2 . 1 . . . . . . 2 . . 5 4 2 . 2 1 2 . . . 2 . 2 Programmer 30 | . . . . . . . . . . . 1 . . . . . . . . 4 1 . 1 3 3 . 1 7 2 1 . . 1 1 4 Q-Series 1 | . . . . . . . . . . . . . . . . . . . . . . . . . . . . 1 . . . . . . . Behemoth 7 | . . . . . . . . . . . . . . 2 . . . . . . 1 . 1 . . . . . 1 1 . . 1 . . Cetus Guard 1 | . . . . . . . . . . . . . . . 1 . . . . . . . . . . . . . . . . . . . . Striker 2 | . . . . . . . . . . . . . . . . . . . . . . . . . . . . 2 . . . . . . . Alpha 7 3 | . . . . . . . . . . . . . . . . . . . . . . . . . . . . 1 . . . . . . 2 Zionite 4 | . . . 4 . . . . . . . . . . . . . . . . . . . . . . . . . . . . . . . . Assembled 7 | . . . 7 . . . . . . . . . . . . . . . . . . . . . . . . . . . . . . . . Best Kill Streak 24 | 3 7 1 7 3 5 10 4 3 5 6 9 4 4 6 1 2 7 7 1 4 8 2 10 24 8 . 4 5 11 5 7 3 5 3 5 Combat Bots Only 21 | . 6 1 7 3 3 10 2 3 3 5 7 4 4 6 1 2 5 7 1 2 8 1 10 21 8 . 3 4 11 5 7 2 5 2 3 Max Kills in Single Turn 3 | 1 1 1 1 1 1 1 1 1 1 1 1 1 1 2 1 2 3 1 1 1 3 1 3 2 2 . 1 2 1 1 1 1 1 1 3 Gunslinging 1 | . . . . . . . . . . . . . . . . . . . . . . . . . 1 . . . . . . . . . . Exploded 1 | . . . . . . . . . . . . . . . . . 1 1 . . . . . . . . . . . . . . . . . Melee . | . . . . . . . . . . . . . . . . . . . . . . . . . . . . . . . . . . . . Uniques/NPCs Destroyed 3 | . . . 2 . . . . . . . . . . . 1 . . . . . . . . . . . . . . . . . . . . 8R-AWN (-10/Exiles) EX-HEX (-10/Exiles) EX-BIN (-10/Exiles) EX-DEC (-10/Exiles) A7 (-6/Cetus) Combat | -11 -10 -10 -10 -9 -8 -8 -8 -8 -7 -7 -7 -7 -6 -6 -6 -6 -6 -5 -5 -4 -4 -4 -4 -3 -3 -3 -2 -2 -2 -2 -2 -1 -1 -1 -1 -------- Run | Scr Mat Min Exi Min Mat Gar Mat Gar Fac Gar Fac Gar Fac Ext Cet Arc Hub Fac Gar Fac Gar Fac Gar Res Arm Lab Res Tes Gar Sec Gar Acc Gar Acc Com Damage Taken 17678 | . 683 25 977 47 91 407 117 168 129 262 948 449 695 634 166 . 817 339 51 723 820 149 1592 1720 923 . 18 1037 702 709 417 22 314 207 1320 Core 11907 | . 506 9 696 37 73 280 79 131 80 178 652 343 512 374 121 . 558 213 33 522 531 101 972 1012 581 . 14 734 432 533 284 20 207 144 945 Absorbed by Shields 7583 | . 209 10 201 18 36 160 45 64 49 100 14 111 192 235 59 . 174 126 20 238 297 54 584 629 344 . 7 794 373 582 366 20 306 200 966 Redirected to Core 9698 | . 417 9 538 30 60 246 61 83 54 106 489 260 373 343 100 . 436 170 33 412 428 83 741 921 465 . 14 608 419 420 259 7 190 144 779 Core Remaining (%) 85 | 100 . . . 93 . . . 100 . . . 11 . . . . 62 . 94 . . . 98 . . 100 . . . . 100 . . . 92 Volleys Fired 1522 | 19 93 11 37 . 7 9 40 26 18 42 63 23 64 57 34 4 35 31 4 30 65 13 114 75 67 . 42 162 65 74 76 18 36 15 53 Largest 4 | 2 2 1 1 . 1 1 1 1 1 1 1 2 2 2 2 2 2 2 2 2 2 2 2 2 2 . 1 3 3 3 3 3 3 4 4 Hottest 250 | 40 40 20 120 . 30 30 30 30 30 30 30 60 60 60 60 63 63 63 63 63 63 63 63 63 65 . 100 250 150 150 180 180 180 225 225 Shots Fired 2826 | 38 173 11 100 8 38 40 40 26 18 42 63 31 126 114 68 8 68 62 8 60 128 26 227 149 127 . 42 185 177 144 140 47 92 39 161 Gun 2333 | 38 173 11 83 8 38 40 40 26 18 42 63 31 126 114 68 8 68 62 8 60 128 26 227 149 127 . . 68 63 38 139 30 65 24 124 Cannon 493 | . . . 17 . . . . . . . . . . . . . . . . . . . . . . . 42 117 114 106 1 17 27 15 37 Launcher . | . . . . . . . . . . . . . . . . . . . . . . . . . . . . . . . . . . . . Special . | . . . . . . . . . . . . . . . . . . . . . . . . . . . . . . . . . . . . Kinetic 2224 | 38 173 11 83 . 7 23 40 26 18 42 63 31 126 114 68 8 68 62 8 60 128 26 227 149 127 . . 77 124 74 69 15 37 16 86 Thermal 385 | . . . 17 . . . . . . . . . . . . . . . . . . . . . . . 42 108 53 68 1 17 27 15 37 Explosive . | . . . . . . . . . . . . . . . . . . . . . . . . . . . . . . . . . . . . Electromagnetic 56 | . . . . 8 31 17 . . . . . . . . . . . . . . . . . . . . . . . . . . . . . Slashing 161 | . . . . . . . . . . . . . . . . . . . . . . . . . . . . . . 2 70 15 28 8 38 Robot Hit Streak 60 | 5 21 4 26 12 15 21 11 20 5 7 17 12 57 26 19 18 33 47 10 15 60 14 32 50 39 . 15 33 24 19 39 7 37 39 28 Robot Miss Streak 8 | 2 6 1 4 1 4 2 5 2 1 3 2 2 1 3 1 . 2 1 . 1 3 1 3 1 2 . . 8 3 2 2 2 2 3 2 Penetration Max 3 | . . . 1 . 1 1 1 2 2 . 2 2 2 2 1 3 2 1 . 1 2 1 2 2 2 . . 2 2 1 2 1 2 . 2 Secondary Targets 25 | . 3 . . . . . . . . . . . . 3 . 1 . . . . 4 1 3 2 3 . . . . . 3 . 1 . 1 Max Gunslinging Chain 1 | . 1 . . . . . . . . . . . . 1 . 1 . . . . 1 1 1 1 1 . . . . . 1 . 1 . 1 Autonomous 135 | . . . 63 8 31 33 . . . . . . . . . . . . . . . . . . . . . . . . . . . . . Shots Hit Robots 2128 | 24 116 10 131 8 34 38 26 22 13 23 48 24 111 94 60 8 57 51 8 48 95 22 175 128 102 . 8 87 119 75 122 30 75 23 113 Core Hits 1122 | 9 53 4 29 8 23 18 9 8 7 12 29 10 43 35 19 5 28 28 4 22 58 10 90 67 70 . 14 59 77 41 71 20 48 16 78 Critical Hits 779 | 1 2 . 9 . 2 5 16 8 11 15 29 11 33 25 13 11 29 22 2 18 47 10 87 75 41 . 5 47 44 23 55 11 26 6 40 Critical Kills 281 | . . . 4 . 1 2 7 3 5 6 9 5 9 7 . 3 10 13 . 8 24 5 30 29 15 . 1 12 18 8 19 4 8 4 12 Critical Parts Destroyed 441 | 1 2 . 2 . 1 3 8 5 6 8 20 6 23 16 10 8 17 8 2 10 16 5 47 45 26 . 4 33 21 9 33 5 16 2 23 Melee Attacks 77 | . 1 2 60 . . . . . . . . . . . . . . . . . 1 . . . 5 6 . 2 . . . . . . . Impact . | . . . . . . . . . . . . . . . . . . . . . . . . . . . . . . . . . . . . Slashing 14 | . . . . . . . . . . . . . . . . . . . . . 1 . . . 5 6 . 2 . . . . . . . Piercing . | . . . . . . . . . . . . . . . . . . . . . . . . . . . . . . . . . . . . Sneak Attacks 63 | . 1 2 60 . . . . . . . . . . . . . . . . . . . . . . . . . . . . . . . . Combat Hostiles . | . . . . . . . . . . . . . . . . . . . . . . . . . . . . . . . . . . . . Follow-up Attacks . | . . . . . . . . . . . . . . . . . . . . . . . . . . . . . . . . . . . . Damage Inflicted 54351 | 212 1258 67 2596 228 990 858 522 405 407 472 1139 604 2472 2840 1261 218 825 1129 107 866 1154 264 2410 2159 3260 . 1787 4993 4514 2646 3604 1002 2821 702 3559 Guns 39120 | 212 1258 67 2054 222 990 858 522 405 407 472 1078 604 2472 2840 1261 218 825 612 107 590 1154 264 2410 2159 3260 . . 1293 911 558 3562 608 1804 460 2603 Cannons 14371 | . . . 542 . . . . . . . . . . . . . . . . . . . . . . . 1787 3700 3603 2088 42 394 1017 242 956 Explosions 854 | . . . . . . . . . . . 61 . . . . . . 517 . 276 . . . . . . . . . . . . . . . Melee . | . . . . . . . . . . . . . . . . . . . . . . . . . . . . . . . . . . . . Ramming 6 | . . . . 6 . . . . . . . . . . . . . . . . . . . . . . . . . . . . . . . Kinetic 35255 | 212 1258 67 2054 . 80 543 522 405 407 472 1078 604 2472 2840 1261 218 825 612 107 590 1154 264 2410 2159 3260 . . 1573 2450 1245 1437 145 785 243 1503 Thermal 11804 | . . . 542 . . . . . . . . . . . . . . . . . . . . . . . 1787 3420 2064 1340 42 394 1017 242 956 Explosive 854 | . . . . . . . . . . . 61 . . . . . . 517 . 276 . . . . . . . . . . . . . . . Electromagnetic 1447 | . . . . 222 910 315 . . . . . . . . . . . . . . . . . . . . . . . . . . . . . Impact . | . . . . . . . . . . . . . . . . . . . . . . . . . . . . . . . . . . . . Slashing 4985 | . . . . . . . . . . . . . . . . . . . . . . . . . . . . . . 61 2125 463 1019 217 1100 Piercing . | . . . . . . . . . . . . . . . . . . . . . . . . . . . . . . . . . . . . Highest Corruption 6 | . . . . . . . . . 1 1 1 . . . . . 6 . . 2 2 . 3 2 2 2 . 1 . 1 . . . . 3 Average Corruption 1 | . . . . . . . . . 1 1 1 . . . . . 5 . . 1 1 . 2 1 1 1 . 1 . 1 . . . . 2 Corruption Purged 14 | . . . . . . . . . . . 1 . . . . . . . . 2 2 . 2 . 2 2 . 2 . 1 . . . . . Effects 45 | . . . . . . . . . 1 1 . . . . . . . . . 2 3 . 6 4 9 1 . 3 . 5 . . . . 10 Message Errors 13 | . . . . . . . . . . 1 . . . . . . . . . 1 . . 1 2 3 1 . 2 . 1 . . . . 1 Matter Fused 1 | . . . . . . . . . . . . . . . . . . . . . . . . . . . . . . . . . . . 1 Heat Flow Errors 5 | . . . . . . . . . . . . . . . . . . . . . 1 . 1 . 2 . . . . . . . . . 1 Energy Discharges 5 | . . . . . . . . . . . . . . . . . . . . . 2 . . . 2 . . . . 1 . . . . . Data Loss (minor) 2 | . . . . . . . . . . . . . . . . . . . . . . . 1 . . . . . . 1 . . . . . Targeting Errors 15 | . . . . . . . . . 1 . . . . . . . . . . 1 . . 2 1 2 . . 1 . 2 . . . . 5 Weapon Failures 4 | . . . . . . . . . . . . . . . . . . . . . . . 1 1 . . . . . . . . . . 2 Overload Shots 7 | . . . . . . . . . . . . . . . . . . . . . . . . . . . . 2 . 2 . . . 2 1 Effects 1 | . . . . . . . . . . . . . . . . . . . . . . . . . . . . . . . . . . . 1 Short Circuit 1 | . . . . . . . . . . . . . . . . . . . . . . . . . . . . . . . . . . . 1 Overflow Damage 484 | . . . 4 . . . . . . . . . . . . . . 16 . 49 . . . . . . 129 86 117 63 . . . 20 . Projectiles 419 | . . . 4 . . . . . . . . . . . . . . . . . . . . . . . 129 86 117 63 . . . 20 . Explosions 65 | . . . . . . . . . . . . . . . . . . 16 . 49 . . . . . . . . . . . . . . . Melee . | . . . . . . . . . . . . . . . . . . . . . . . . . . . . . . . . . . . . Knockbacks 21 | . . . . . . . . . . . . . . . . . . . . . . . . . . . . 3 11 7 . . . . . Impact . | . . . . . . . . . . . . . . . . . . . . . . . . . . . . . . . . . . . . Kinetic 18 | . . . . . . . . . . . . . . . . . . . . . . . . . . . . 3 8 7 . . . . . Secondary 3 | . . . . . . . . . . . . . . . . . . . . . . . . . . . . . 3 . . . . . . Self-Inflicted Damage 189 | . . . . . . . . . . . . . . . . . . . . 189 . . . . . . . . . . . . . . . Shots 3 | . . . . . . . . . . . . . . . . . . . . 3 . . . . . . . . . . . . . . . Rammed . | . . . . . . . . . . . . . . . . . . . . . . . . . . . . . . . . . . . . Targets Rammed 1 | . . . . 1 . . . . . . . . . . . . . . . . . . . . . . . . . . . . . . . Kicked 1 | . . . . 1 . . . . . . . . . . . . . . . . . . . . . . . . . . . . . . . Crushed . | . . . . . . . . . . . . . . . . . . . . . . . . . . . . . . . . . . . . Highest Temperature 326 | . 5 4 302 . . . 20 20 17 26 21 103 116 152 166 40 106 326 60 177 231 15 228 23 186 . 230 227 23 82 84 116 144 160 264 Average Temperature 48 | . 2 3 111 . . . 9 8 9 8 7 34 26 46 69 18 38 61 34 62 63 6 37 6 28 . 79 69 8 13 36 45 59 50 102 Received Heat Transfer 2190 | . 234 8 . 24 42 66 24 . 64 20 203 184 230 125 12 . 81 54 12 12 51 21 179 136 93 . . 10 107 36 66 . 36 24 36 Effects 3 | . . . . . . . . . . . . . . . . . . . . . . . 1 . . . . . . . . . . . 2 Energy Bleed 1 | . . . . . . . . . . . . . . . . . . . . . . . . . . . . . . . . . . . 1 Interference 2 | . . . . . . . . . . . . . . . . . . . . . . . 1 . . . . . . . . . . . 1 Siege Activations . | . . . . . . . . . . . . . . . . . . . . . . . . . . . . . . . . . . . . Robots Corrupted 1 | . . . . . 1 . . . . . . . . . . . . . . . . . . . . . . . . . . . . . . Combat Hostiles 1 | . . . . . 1 . . . . . . . . . . . . . . . . . . . . . . . . . . . . . . Parts Fried 6 | . . . . 1 3 1 . . . . . . . 1 . . . . . . . . . . . . . . . . . . . . . Impact Corruptions . | . . . . . . . . . . . . . . . . . . . . . . . . . . . . . . . . . . . . Robots Melted . | . . . . . . . . . . . . . . . . . . . . . . . . . . . . . . . . . . . . Combat Hostiles . | . . . . . . . . . . . . . . . . . . . . . . . . . . . . . . . . . . . . Parts Melted 18 | . . . 2 . . . . . . . . . . . . . . . . . . . . . . . 1 5 3 4 . . 2 . 1 Heat Transferred 10364 | . . . 1280 . . . . . . . . . . . . . . . . . . . . . . . 1443 2949 1607 1073 37 333 569 185 888 Parts Sabotaged . | . . . . . . . . . . . . . . . . . . . . . . . . . . . . . . . . . . . . Parts Stolen . | . . . . . . . . . . . . . . . . . . . . . . . . . . . . . . . . . . . . Parts Stripped . | . . . . . . . . . . . . . . . . . . . . . . . . . . . . . . . . . . . . Power Chain Reactions . | . . . . . . . . . . . . . . . . . . . . . . . . . . . . . . . . . . . . Missiles Intercepted . | . . . . . . . . . . . . . . . . . . . . . . . . . . . . . . . . . . . . Alert | -11 -10 -10 -10 -9 -8 -8 -8 -8 -7 -7 -7 -7 -6 -6 -6 -6 -6 -5 -5 -4 -4 -4 -4 -3 -3 -3 -2 -2 -2 -2 -2 -1 -1 -1 -1 ------- Run | Scr Mat Min Exi Min Mat Gar Mat Gar Fac Gar Fac Gar Fac Ext Cet Arc Hub Fac Gar Fac Gar Fac Gar Res Arm Lab Res Tes Gar Sec Gar Acc Gar Acc Com Peak Influence 2266 | 25 634 238 . 140 402 487 475 475 464 328 945 796 974 585 818 774 565 943 695 733 1077 696 1328 1407 1497 . 285 1093 1617 1365 1526 1153 1403 1828 2266 Average Influence 635 | 9 372 208 . 74 225 297 318 357 238 172 415 736 581 421 525 490 305 569 670 453 538 334 739 869 966 . 131 525 1212 990 1110 983 1092 1694 1767 Maximum Alert Level 5 | . 2 1 . . 2 2 2 2 2 1 3 3 3 2 3 3 2 3 2 3 3 2 4 4 4 . 1 3 5 4 4 4 4 5 5 Low Security (%) 12 | 100 22 30 . 100 21 40 9 . 24 51 32 . . . 4 . 25 . . . 33 21 3 . . . 71 2 . . . . . . . Level 1 21 | . 31 70 . . 77 20 66 72 60 48 16 . 6 46 28 40 55 22 . 15 5 52 22 . . . 28 30 . . . . . . . Level 2 30 | . 45 . . . . 38 24 27 14 . 45 16 77 53 41 49 19 51 100 79 27 26 26 39 5 . . 52 . . . . . . . Level 3 20 | . . . . . . . . . . . 5 83 16 . 25 9 . 25 . 5 33 . 21 24 68 . . 14 43 82 45 74 56 . . Level 4 9 | . . . . . . . . . . . . . . . . . . . . . . . 25 35 25 . . . 55 17 54 25 43 . 32 Level 5 . | . . . . . . . . . . . . . . . . . . . . . . . . . . . . . 1 . . . . . 2 High Security 1 | . . . . . . . . . . . . . . . . . . . . . . . . . . . . . . . . . . . 65 Max Security 2 | . . . . . . . . . . . . . . . . . . . . . . . . . . . . . . . . . . 99 . Squads Dispatched 97 | . 8 1 . 1 2 . 1 . 4 . 3 . 7 1 . . 8 6 . 2 . 2 . 7 2 . 3 13 . 3 . 2 . 12 9 Investigation 37 | . 8 1 . 1 1 . 1 . 2 . 2 . 4 . . . 6 5 . . . 1 . 3 . . . . . . . 1 . . 1 Extermination 9 | . . . . . . . . . . . 1 . . . . . . . . 1 . . . . 1 . 1 4 . 1 . . . . . Reinforcement 16 | . . . . . 1 . . . 2 . . . 1 1 . . . . . 1 . . . 4 . . . 5 . 1 . . . . . Assault 29 | . . . . . . . . . . . . . 2 . . . 1 1 . . . . . . 1 . . 4 . . . . . 12 8 Garrison 6 | . . . . . . . . . . . . . . . . . 1 . . . . 1 . . . . 2 . . 1 . 1 . . . Intercept . | . . . . . . . . . . . . . . . . . . . . . . . . . . . . . . . . . . . . Construction Impeded 1 | . . . . . . . . . . . . . . . . . . . . . . . . 1 . . . . . . . . . . . Haulers Reinforced 3 | . . . . . . . . . 1 . . . 1 . . . . . . . . . . 1 . . . . . . . . . . . Alert ID Control Effect 1 | . . . . . . . . . . . . . . . . . . . . . . . . 1 . . . . . . . . . . . Stealth | -11 -10 -10 -10 -9 -8 -8 -8 -8 -7 -7 -7 -7 -6 -6 -6 -6 -6 -5 -5 -4 -4 -4 -4 -3 -3 -3 -2 -2 -2 -2 -2 -1 -1 -1 -1 --------- Run | Scr Mat Min Exi Min Mat Gar Mat Gar Fac Gar Fac Gar Fac Ext Cet Arc Hub Fac Gar Fac Gar Fac Gar Res Arm Lab Res Tes Gar Sec Gar Acc Gar Acc Com Distress Signals 29 | . 2 . . . 1 . . . . . 1 2 . 1 2 . 1 2 . . . . . 3 4 . 3 . . 2 . 1 . 1 3 Communications Jammed . | . . . . . . . . . . . . . . . . . . . . . . . . . . . . . . . . . . . . Distress Signals . | . . . . . . . . . . . . . . . . . . . . . . . . . . . . . . . . . . . . Times Spotted 868 | . 28 10 30 5 14 17 13 9 16 10 17 18 55 26 8 26 26 39 1 18 26 13 41 48 47 . 8 44 33 30 37 8 15 62 70 Peak Tracking Total 23 | . 4 5 9 3 3 9 3 6 10 4 5 9 16 7 5 15 5 12 1 7 8 7 13 13 12 . 5 8 9 8 6 3 6 23 15 Tactical Retreats 88 | . . 1 12 . 2 2 . 1 . 2 . 1 7 3 . . 5 5 . 3 1 . 5 2 5 . . 1 4 2 6 . 2 6 10 Traps | -11 -10 -10 -10 -9 -8 -8 -8 -8 -7 -7 -7 -7 -6 -6 -6 -6 -6 -5 -5 -4 -4 -4 -4 -3 -3 -3 -2 -2 -2 -2 -2 -1 -1 -1 -1 ------- Run | Scr Mat Min Exi Min Mat Gar Mat Gar Fac Gar Fac Gar Fac Ext Cet Arc Hub Fac Gar Fac Gar Fac Gar Res Arm Lab Res Tes Gar Sec Gar Acc Gar Acc Com Traps Triggered 52 | . 2 . . . . . . 6 . 4 1 1 . 6 . . . 1 3 1 3 1 3 1 . . . . 5 2 7 . 1 . 4 Indirectly . | . . . . . . . . . . . . . . . . . . . . . . . . . . . . . . . . . . . . Trap Hack Attempts 54 | . 54 . . . . . . . . . . . . . . . . . . . . . . . . . . . . . . . . . . Triggered 1 | . 1 . . . . . . . . . . . . . . . . . . . . . . . . . . . . . . . . . . Disarmed 5 | . 1 . . . . . . . . . . . . . . . . . . . . . . . . . . . . 4 . . . . . Reprogrammed 3 | . 3 . . . . . . . . . . . . . . . . . . . . . . . . . . . . . . . . . . Reused 2 | . . . 2 . . . . . . . . . . . . . . . . . . . . . . . . . . . . . . . . Traps Extracted 3 | . 3 . . . . . . . . . . . . . . . . . . . . . . . . . . . . . . . . . . Installed 4 | . 1 1 2 . . . . . . . . . . . . . . . . . . . . . . . . . . . . . . . . Triggered 1 | . . . . . . . . . . . . . . . . . . . . . . . . . . . . . . . . . . . 1 Machines | -11 -10 -10 -10 -9 -8 -8 -8 -8 -7 -7 -7 -7 -6 -6 -6 -6 -6 -5 -5 -4 -4 -4 -4 -3 -3 -3 -2 -2 -2 -2 -2 -1 -1 -1 -1 ---------- Run | Scr Mat Min Exi Min Mat Gar Mat Gar Fac Gar Fac Gar Fac Ext Cet Arc Hub Fac Gar Fac Gar Fac Gar Res Arm Lab Res Tes Gar Sec Gar Acc Gar Acc Com Machines Disabled 62 | . . . 3 . . . . 2 . 2 6 . 1 . 1 1 . 3 . 3 2 . 5 . 5 2 . 6 1 11 2 . 3 1 2 Max in Single Turn 2 | . . . 1 . . . . 1 . 1 2 . 1 . . . . 2 . 2 1 . 2 . 1 1 . 1 1 1 1 . 1 1 2 Garrison Access 4 | . . . . . . . . . . . . . 2 . . . 1 . . . . . . 1 . . . . . . . . . . . Garrison Relay 15 | . . . . . . . . 2 . 2 . . . . . . . . . . 2 . 4 . . . . . 1 . 2 . 2 . . Phase Generator 2 | . . . . . . . . . . . . . . . . . . . . . . . 1 . . . . . . . . . . . 1 Network Hub 5 | . . . . . . . . . . . . . . . . . 5 . . . . . . . . . . . . . . . . . . Machines Sabotaged 2 | . . . . . . . . . . . . . . . . . 2 . . . . . . . . . . . . . . . . . . Garrisons Compromised . | . . . . . . . . . . . . . . . . . . . . . . . . . . . . . . . . . . . . Overloaded Fab Kills . | . . . . . . . . . . . . . . . . . . . . . . . . . . . . . . . . . . . . Fab Network Shutdowns 3 | . . . . . . . . . . . 1 . 1 . . . . . . . . . . . . . . 1 . . . . . . . Hacking | -11 -10 -10 -10 -9 -8 -8 -8 -8 -7 -7 -7 -7 -6 -6 -6 -6 -6 -5 -5 -4 -4 -4 -4 -3 -3 -3 -2 -2 -2 -2 -2 -1 -1 -1 -1 --------- Run | Scr Mat Min Exi Min Mat Gar Mat Gar Fac Gar Fac Gar Fac Ext Cet Arc Hub Fac Gar Fac Gar Fac Gar Res Arm Lab Res Tes Gar Sec Gar Acc Gar Acc Com Machines Accessed 175 | . 9 1 3 2 5 . 6 . 4 . 7 . 19 14 3 1 10 14 . 5 . 9 . 9 6 2 6 13 . 17 . 6 . . 4 Terminals 113 | . 6 . . 1 3 . 3 . 3 . 4 . 9 13 3 . 9 7 . 4 . 5 . 5 3 . 5 9 . 15 . 2 . . 4 Fabricators 12 | . . . . . . . . . . . 1 . 3 . . . . 1 . . . 2 . 1 2 . . 1 . . . 1 . . . Repair Stations 8 | . 1 . . . . . 1 . . . . . 3 . . . . 1 . . . . . . 1 . . 1 . . . . . . . Recycling Units 6 | . 2 . . . . . . . . . . . . 1 . . . 2 . . . . . . . . . . . . . 1 . . . Scanalyzers 11 | . . . . . 1 . 1 . . . 1 . 1 . . . . 2 . . . . . 2 . . . 1 . 1 . 1 . . . Garrison Access 17 | . . . . . 1 . 1 . 1 . 1 . 3 . . . 1 1 . 1 . 2 . 1 . . 1 1 . 1 . 1 . . . Total Hacks 1063 | . 31 1 9 4 25 . 31 . 29 . 33 . 95 58 17 25 54 96 . 35 . 77 . 58 41 19 49 79 . 117 . 46 . . 34 Successful 595 | . 18 1 9 1 17 . 18 . 14 . 18 . 61 40 8 25 34 59 . 15 . 37 . 28 19 19 21 42 . 60 . 18 . . 13 Failed 467 | . 13 . . 3 8 . 13 . 15 . 15 . 34 18 9 . 20 36 . 20 . 40 . 30 22 . 28 37 . 57 . 28 . . 21 Catastrophic 71 | . 1 . . 1 1 . . . . . . . 7 2 1 . 2 3 . 7 . 5 . 5 3 . 2 6 . 14 . 8 . . 3 Database Lockouts 1 | . . . . . . . . . . . . . . . . . . 1 . . . . . . . . . . . . . . . . . Manual 434 | . 15 . 1 3 9 . 19 . 26 . 14 . 50 37 4 . 32 37 . 14 . 22 . 14 11 . 20 17 . 57 . 14 . . 18 Terminals 813 | . 24 . . 3 14 . 21 . 26 . 27 . 63 51 17 . 52 74 . 34 . 57 . 39 29 . 46 58 . 110 . 34 . . 34 Fabricators 53 | . . . . . . . . . . . 4 . 12 . . . . 3 . . . 13 . 6 6 . . 4 . . . 5 . . . Repair Stations 26 | . 3 . . . . . 2 . . . . . 9 . . . . 3 . . . . . . 6 . . 3 . . . . . . . Recycling Units 18 | . 4 . . . . . . . . . . . . 7 . . . 2 . . . . . . . . . . . . . 5 . . . Scanalyzers 53 | . . . . . 7 . 5 . . . 1 . 5 . . . . 13 . . . . . 11 . . . 9 . 1 . 1 . . . Garrison Access 45 | . . . . . 4 . 3 . 3 . 1 . 6 . . . 2 1 . 1 . 7 . 2 . . 3 5 . 6 . 1 . . . Terminal Hacks 338 | . 11 1 9 1 8 . 11 . 8 . 9 . 29 22 5 25 14 31 . 12 . 20 . 13 10 19 11 20 . 32 . 9 . . 8 Record 57 | . . . 8 . . . . . . . . . . . 4 25 . . . . . . . . 1 19 . . . . . . . . . Part Schematic 41 | . . . . . 1 . 1 . . . . . 8 3 . . . 10 . . . 7 . 1 . . 1 6 . 3 . . . . . Robot Schematic 8 | . 1 . . . . . . . . . 3 . 2 . . . . . . 1 . . . . . . 1 . . . . . . . . Robot Analysis 42 | . 5 . . . 3 . 2 . 4 . . . 10 . . . . 4 . 3 . . . . 2 . 1 2 . 3 . 1 . . 2 Prototype ID Bank 30 | . 2 . . . . . 2 . . . 1 . . 2 . . 4 4 . 1 . 1 . 1 2 . 3 2 . 4 . . . . 1 Open Door 21 | . . 1 . 1 . . . . . . . . . 11 1 . . . . . . . . . 1 . . 1 . 5 . . . . . Level Access Points 4 | . . . . . . . . . . . . . . . . . 1 . . . . . . 1 . . 1 . . 1 . . . . . Branch Access Points 7 | . . . . . . . . . . . . . 1 . . . . 1 . 1 . 1 . 1 . . 1 . . . . 1 . . . Machine Index 4 | . . . . . . . . . . . . . . . . . . 1 . . . 1 . 1 . . . 1 . . . . . . . Terminal Index 10 | . . . . . 1 . . . . . 1 . . 1 . . . . . . . . . 1 2 . . . . 2 . 1 . . 1 Fabricator Index 2 | . . . . . . . . . . . . . . 1 . . . . . . . . . . . . . . . . . 1 . . . Scanalyzer Index 3 | . . . . . . . 1 . . . . . . . . . . . . . . . . . . . . . . 1 . 1 . . . Garrison Index 5 | . . . . . . . . . . . . . . . . . 1 . . 1 . . . . . . 1 1 . . . 1 . . . Unreport Threat 33 | . . . . . . . 2 . 3 . . . 3 2 . . 2 . . 3 . 5 . 3 . . 1 2 . 5 . 1 . . 1 Locate Traps 26 | . 1 . . . 1 . 2 . 1 . 2 . 2 1 . . 1 3 . 1 . 3 . 1 1 . . 1 . 4 . 1 . . . Disarm Traps 1 | . . . . . . . . . . . . . . . . . . . . . . . . . . . . . . 1 . . . . . Reprogram Traps 1 | . 1 . . . . . . . . . . . . . . . . . . . . . . . . . . . . . . . . . . Patrol Status 1 | . . . . . . . . . . . . . . . . . . 1 . . . . . . . . . . . . . . . . . Transport Status 1 | . . . . . . . . . . . . . . . . . . 1 . . . . . . . . . . . . . . . . . Recall Investigation 1 | . . . . . . . . . . . . . . . . . . 1 . . . . . . . . . . . . . . . . . Hauler Manifests 10 | . . . . . 1 . . . . . 1 . 1 . . . 1 3 . . . 1 . 1 . . . . . . . 1 . . . Registered Components 2 | . . . . . . . . . . . . . . . . . . . . . . . . 1 . . . . . . . . . . 1 Registered Prototypes 6 | . 1 . . . . . . . . . . . . . . . . 1 . . . 1 . 1 . . . . . 1 . . . . 1 Zone Layout 17 | . . . . . 1 . 1 . . . 1 . 2 1 . . 4 1 . 1 . . . . 1 . 1 2 . 1 . . . . . EX-Prototype ID Bank 1 | . . . 1 . . . . . . . . . . . . . . . . . . . . . . . . . . . . . . . . Protovariant Controls 2 | . . . . . . . . . . . . . . . . . . . . . . . . . . . . 2 . . . . . . . Activate Exoskeleton 1 | . . . . . . . . . . . . . . . . . . . . . . . . . . . . . . 1 . . . . . Disengage Seal 1 | . . . . . . . . . . . . . . . . . . . . . . . . . . . . . . . . . . . 1 Fabricator Hacks 27 | . . . . . . . . . . . 2 . 8 . . . . 2 . . . 6 . 2 3 . . 3 . . . 1 . . . Load Schematic 13 | . . . . . . . . . . . 1 . 4 . . . . 1 . . . 3 . 1 1 . . 1 . . . 1 . . . Build 14 | . . . . . . . . . . . 1 . 4 . . . . 1 . . . 3 . 1 2 . . 2 . . . . . . . Repair Station Hacks 19 | . 2 . . . . . 2 . . . . . 8 . . . . 2 . . . . . . 3 . . 2 . . . . . . . Scan Component 10 | . 1 . . . . . 1 . . . . . 4 . . . . 1 . . . . . . 2 . . 1 . . . . . . . Repair 9 | . 1 . . . . . 1 . . . . . 4 . . . . 1 . . . . . . 1 . . 1 . . . . . . . Recycling Unit Hacks 7 | . 2 . . . . . . . . . . . . 2 . . . 2 . . . . . . . . . . . . . 1 . . . Report Inventory 6 | . 2 . . . . . . . . . . . . 1 . . . 2 . . . . . . . . . . . . . 1 . . . Retrieve Components 1 | . . . . . . . . . . . . . . 1 . . . . . . . . . . . . . . . . . . . . . Scanalyzer 33 | . . . . . 5 . 2 . . . . . 5 . . . . 11 . . . . . 6 . . . 3 . 1 . . . . . Insert Component 16 | . . . . . 2 . 1 . . . . . 2 . . . . 4 . . . . . 3 . . . 3 . 1 . . . . . Analyze 17 | . . . . . 3 . 1 . . . . . 3 . . . . 7 . . . . . 3 . . . . . . . . . . . Garrison Access Hacks 18 | . . . . . 1 . 1 . 1 . 1 . 4 . . . 1 1 . 1 . 2 . 1 . . 1 1 . 1 . 1 . . . Unlock Access 15 | . . . . . 1 . 1 . 1 . 1 . 2 . . . 1 1 . 1 . 2 . . . . 1 1 . 1 . 1 . . . Seal Access 3 | . . . . . . . . . . . . . 2 . . . . . . . . . . 1 . . . . . . . . . . . Unauthorized Hacks 153 | . 3 . . . 3 . 2 . 5 . 6 . 7 16 3 . 19 10 . 2 . 9 . 6 3 . 9 13 . 26 . 6 . . 5 Terminals 125 | . 1 . . . 1 . . . 4 . 5 . 5 15 3 . 18 9 . 2 . 5 . 4 3 . 7 9 . 24 . 5 . . 5 Track 35 | . . . . . . . . . 1 . 1 . 2 3 2 . 3 3 . 1 . 1 . . 1 . 2 2 . 10 . 1 . . 2 Assimilate 11 | . . . . . . . . . 1 . 2 . 1 . . . 1 1 . . . . . . . . 2 1 . 2 . . . . . Botnet 58 | . 1 . . . 1 . . . 1 . 2 . 1 11 1 . 7 2 . 1 . 4 . 4 2 . 2 5 . 10 . 2 . . 1 Detonate 5 | . . . . . . . . . . . . . . . . . 2 2 . . . . . . . . . . . . . . . . 1 Operators 11 | . . . . . . . . . 1 . . . 1 1 . . . 1 . . . . . . . . 1 1 . 2 . 2 . . 1 Sabotage 5 | . . . . . . . . . . . . . . . . . 5 . . . . . . . . . . . . . . . . . . Fabricators 7 | . . . . . . . . . . . 1 . 2 . . . . 1 . . . 1 . 1 . . . 1 . . . . . . . Report 6 | . . . . . . . . . . . 1 . 1 . . . . 1 . . . 1 . 1 . . . 1 . . . . . . . Download 1 | . . . . . . . . . . . . . 1 . . . . . . . . . . . . . . . . . . . . . . Repair Stations . | . . . . . . . . . . . . . . . . . . . . . . . . . . . . . . . . . . . . Recycling Units 3 | . 2 . . . . . . . . . . . . 1 . . . . . . . . . . . . . . . . . . . . . Mask 1 | . . . . . . . . . . . . . . 1 . . . . . . . . . . . . . . . . . . . . . Tunnel 2 | . 2 . . . . . . . . . . . . . . . . . . . . . . . . . . . . . . . . . . Scanalyzers 2 | . . . . . . . . . . . . . . . . . . . . . . . . . . . . 1 . . . 1 . . . Researchers 2 | . . . . . . . . . . . . . . . . . . . . . . . . . . . . 1 . . . 1 . . . Garrison Access 16 | . . . . . 2 . 2 . 1 . . . . . . . 1 . . . . 3 . 1 . . 2 2 . 2 . . . . . Reprogram 9 | . . . . . 1 . 1 . 1 . . . . . . . 1 . . . . 2 . . . . 1 1 . 1 . . . . . Watchers 7 | . . . . . 1 . 1 . . . . . . . . . . . . . . 1 . 1 . . 1 1 . 1 . . . . . Data Cores Recovered 1 | . . . . . . . . . . . . . . . . . 1 . . . . . . . . . . . . . . . . . . Used . | . . . . . . . . . . . . . . . . . . . . . . . . . . . . . . . . . . . . Hacking Detections 115 | . 7 . . 1 5 . 3 . 4 . 6 . 14 8 1 . 10 10 . 3 . 6 . 5 6 . 4 9 . 8 . 3 . . 2 Full Trace Events 23 | . 5 . . 1 1 . 1 . 2 . 2 . 3 . . . 1 3 . . . 1 . 1 . . . . . . . 1 . . 1 Feedback Events 3 | . . . . . . . . . 1 . . . . . . . . . . . . . . 1 . . . . . . . . . . 1 Corruption 2 | . . . . . . . . . 1 . . . . . . . . . . . . . . . . . . . . . . . . . 1 Hackware Fried 1 | . . . . . . . . . . . . . . . . . . . . . . . . 1 . . . . . . . . . . . Feedback Blocked . | . . . . . . . . . . . . . . . . . . . . . . . . . . . . . . . . . . . . Robot Schematics Acquired 8 | . 1 . . . . . . . . . 3 . 2 . . . . . . 1 . . . . . . 1 . . . . . . . . Robots Built 10 | . . . . . . . . . . . 1 . 5 . . . . . . . . . . . 4 . . . . . . . . . . Matter 1095 | . . . . . . . . . . . 153 . 438 . . . . . . . . . . . 504 . . . . . . . . . . Time 295 | . . . . . . . . . . . 40 . 166 . . . . . . . . . . . 89 . . . . . . . . . . Total Robot Build Rating 37 | . . . . . . . . . . . 1 . 14 . . . . . . . . . . . 22 . . . . . . . . . . Part Schematics Acquired 53 | . . . . . 3 . 2 . . . . . 11 3 . . . 13 . . . 7 . 4 . . 1 6 . 3 . . . . . Parts Built 11 | . . . . . . . . . . . . . 4 . . . . 1 . . . 3 . 1 . . . 2 . . . . . . . Matter 2493 | . . . . . . . . . . . . . 380 . . . . 168 . . . 826 . 285 . . . 834 . . . . . . . Time 873 | . . . . . . . . . . . . . 131 . . . . 84 . . . 164 . 50 . . . 444 . . . . . . . Total Part Build Rating 65 | . . . . . . . . . . . . . 20 . . . . 4 . . . 18 . 5 . . . 18 . . . . . . . Parts Repaired 9 | . 1 . . . . . 1 . . . . . 4 . . . . 1 . . . . . . 1 . . 1 . . . . . . . Time 348 | . 16 . . . . . 95 . . . . . 104 . . . . 22 . . . . . . 43 . . 68 . . . . . . . Parts Recycled . | . . . . . . . . . . . . . . . . . . . . . . . . . . . . . . . . . . . . Recycled Matter . | . . . . . . . . . . . . . . . . . . . . . . . . . . . . . . . . . . . . Retrieved Matter . | . . . . . . . . . . . . . . . . . . . . . . . . . . . . . . . . . . . . Retrieved Components 3 | . . . . . . . . . . . . . . 3 . . . . . . . . . . . . . . . . . . . . . Parts Scanalyzed 12 | . . . . . 2 . 1 . . . . . 2 . . . . 3 . . . . . 3 . . . 1 . . . . . . . Part Schematics Acquired 11 | . . . . . 2 . 1 . . . . . 2 . . . . 3 . . . . . 3 . . . . . . . . . . . Parts Damaged 2 | . . . . . 1 . . . . . . . 1 . . . . . . . . . . . . . . . . . . . . . . Bothacking | -11 -10 -10 -10 -9 -8 -8 -8 -8 -7 -7 -7 -7 -6 -6 -6 -6 -6 -5 -5 -4 -4 -4 -4 -3 -3 -3 -2 -2 -2 -2 -2 -1 -1 -1 -1 ------------ Run | Scr Mat Min Exi Min Mat Gar Mat Gar Fac Gar Fac Gar Fac Ext Cet Arc Hub Fac Gar Fac Gar Fac Gar Res Arm Lab Res Tes Gar Sec Gar Acc Gar Acc Com Used RIF Installer 10 | . . . . . . 1 . 1 . 1 . 1 . . . . . . 1 . 1 . 1 . . . . . 1 . 1 . 1 . . Coupler Efficiency 2 | . . . . . . . . . . . . 1 . . . . . . . . . . 1 . . . . . . . . . . . . Robot Detection 1 | . . . . . . . . . . . . . . . . . . . 1 . . . . . . . . . . . . . . . . Patrol Navigation 1 | . . . . . . . . 1 . . . . . . . . . . . . . . . . . . . . . . . . . . . Alert ID Control 1 | . . . . . . . . . . 1 . . . . . . . . . . . . . . . . . . . . . . . . . Structural Interface 1 | . . . . . . . . . . . . . . . . . . . . . . . . . . . . . . . 1 . . . . Program Shield 1 | . . . . . . . . . . . . . . . . . . . . . 1 . . . . . . . . . . . . . . Autooverride 2 | . . . . . . . . . . . . . . . . . . . . . . . . . . . . . 1 . . . 1 . . Robots Hacked 18 | . 1 1 6 . . . . . . . . . . . . . . . . . . . . . . . . . . . 1 . . 6 3 Non-combat 5 | . 1 1 3 . . . . . . . . . . . . . . . . . . . . . . . . . . . . . . . . Combat 13 | . . . 3 . . . . . . . . . . . . . . . . . . . . . . . . . . . 1 . . 6 3 Autooverrided 10 | . . . . . . . . . . . . . . . . . . . . . . . . . . . . . . . 1 . . 6 3 Robot Hacks Applied 61 | . 1 1 59 . . . . . . . . . . . . . . . . . . . . . . . . . . . . . . . . parse_system 59 | . . . 59 . . . . . . . . . . . . . . . . . . . . . . . . . . . . . . . . no_distress 2 | . 1 1 . . . . . . . . . . . . . . . . . . . . . . . . . . . . . . . . . Relay Couplers Released 25 | . . . . . . . . 3 . 3 . . . . . . . . . . 4 . 6 . . . . . 2 . 3 . 4 . . Machine Destruction 25 | . . . . . . . . 3 . 3 . . . . . . . . . . 4 . 6 . . . . . 2 . 3 . 4 . . Attached 4 | . . . . . . . . 1 . 1 . . . . . . . . . . 1 . . . . . . . . . 1 . . . . Robots Rewired 22 | . . . . . . . . . . . . . . 4 . . . . . . 9 . 9 . . . . . . . . . . . . Allies Hacked 6 | . . . . . . . . . . . . . . . . . . . . . . 1 . 3 . . . 1 . 1 . . . . . Hacks Repelled 2 | . . . . . . . . . . . . . . . . . . . . . . . . 1 . . . 1 . . . . . . . Allies | -11 -10 -10 -10 -9 -8 -8 -8 -8 -7 -7 -7 -7 -6 -6 -6 -6 -6 -5 -5 -4 -4 -4 -4 -3 -3 -3 -2 -2 -2 -2 -2 -1 -1 -1 -1 -------- Run | Scr Mat Min Exi Min Mat Gar Mat Gar Fac Gar Fac Gar Fac Ext Cet Arc Hub Fac Gar Fac Gar Fac Gar Res Arm Lab Res Tes Gar Sec Gar Acc Gar Acc Com Total Allies 89 | . . . . . . . 3 . 2 . 3 . 6 20 5 3 1 1 . . 9 2 9 . 4 . 2 4 . 5 1 . . 6 3 Largest Group 13 | . . . . . . . 3 3 2 . 2 . 4 10 12 13 1 1 . . 9 11 9 9 4 4 6 4 . 4 1 . . 1 1 Highest-Rated Group 979 | . . . . . . . 48 48 52 . 26 . 64 411 787 979 26 10 . . 318 419 318 318 154 154 242 251 . 328 58 . . 58 58 Highest-Rated Ally 156 | . . . . . . . 16 16 26 . 26 . 32 156 156 122 26 10 . . 48 56 48 48 48 48 48 69 . 90 58 . . 58 58 Total Orders 25 | . . . . . . . . . . . 4 . 4 . . . . . . . . . . 6 . 5 6 . . . . . . . . GOTO 16 | . . . . . . . . . . . 3 . 4 . . . . . . . . . . . . 5 4 . . . . . . . . FOLLOW 3 | . . . . . . . . . . . 1 . . . . . . . . . . . . . . . 2 . . . . . . . . EXPLORE 6 | . . . . . . . . . . . . . . . . . . . . . . . . 6 . . . . . . . . . . . Ally Attacks 479 | . . . . . . . . 27 . . . . 9 50 94 49 . . . . 26 51 . 85 . . 20 25 . 25 3 . . 9 6 Total Damage 12589 | . . . . . . . . 261 . . . . 395 1008 2097 1634 . . . . 1103 919 . 2087 . . 649 1152 . 752 96 . . 204 232 Kills 71 | . . . . . . . . 5 . . . . 1 5 16 11 . . . . 4 6 . 9 . . 4 5 . 5 . . . . . Allies Corrupted 3 | . . . . . . . . . . . . . . . . . . . . . . . . 1 . . . 1 . . . . . . 1 Allies Melted . | . . . . . . . . . . . . . . . . . . . . . . . . . . . . . . . . . . . . Intel | -11 -10 -10 -10 -9 -8 -8 -8 -8 -7 -7 -7 -7 -6 -6 -6 -6 -6 -5 -5 -4 -4 -4 -4 -3 -3 -3 -2 -2 -2 -2 -2 -1 -1 -1 -1 ------- Run | Scr Mat Min Exi Min Mat Gar Mat Gar Fac Gar Fac Gar Fac Ext Cet Arc Hub Fac Gar Fac Gar Fac Gar Res Arm Lab Res Tes Gar Sec Gar Acc Gar Acc Com Robot Analysis Total 42 | . 5 . . . 3 . 2 . 4 . . . 10 . . . . 4 . 3 . . . . 2 . 1 2 . 3 . 1 . . 2 Derelict Logs Recovered . | . . . . . . . . . . . . . . . . . . . . . . . . . . . . . . . . . . . . Drone Launches 6 | . . . . . . . . . . . . . . . . . . . . . . . . 6 . . . . . . . . . . . Drone Recoveries . | . . . . . . . . . . . . . . . . . . . . . . . . . . . . . . . . . . . . Exploration | -11 -10 -10 -10 -9 -8 -8 -8 -8 -7 -7 -7 -7 -6 -6 -6 -6 -6 -5 -5 -4 -4 -4 -4 -3 -3 -3 -2 -2 -2 -2 -2 -1 -1 -1 -1 ------------- Run | Scr Mat Min Exi Min Mat Gar Mat Gar Fac Gar Fac Gar Fac Ext Cet Arc Hub Fac Gar Fac Gar Fac Gar Res Arm Lab Res Tes Gar Sec Gar Acc Gar Acc Com Turns Passed 17129 | 96 868 180 1220 309 595 255 327 224 206 295 436 123 1028 614 420 61 275 637 288 563 968 275 766 494 693 120 287 1470 467 741 390 220 415 328 475 Spaces Moved 23186 | 76 776 267 1305 221 414 216 651 326 523 408 740 204 2078 553 532 90 571 1144 235 651 737 625 848 704 546 207 451 1501 633 1441 462 665 477 1026 882 Core 124 | 76 43 . . . . . . . . . . . . 1 1 . . . . . 3 . . . . . . . . . . . . . . Treads . | . . . . . . . . . . . . . . . . . . . . . . . . . . . . . . . . . . . . Legs 1123 | . . . 364 221 414 124 . . . . . . . . . . . . . . . . . . . . . . . . . . . . . Wheels 165 | . 165 . . . . . . . . . . . . . . . . . . . . . . . . . . . . . . . . . . Hover . | . . . . . . . . . . . . . . . . . . . . . . . . . . . . . . . . . . . . Flight 21774 | . 568 267 941 . . 92 651 326 523 408 740 204 2078 552 531 90 571 1144 235 651 734 625 848 704 546 207 451 1501 633 1441 462 665 477 1026 882 Fastest Speed 24 | 50 37 37 37 130 120 31 26 26 26 26 26 26 26 26 26 26 26 27 27 27 27 27 28 28 28 28 28 24 24 24 24 24 24 24 24 Average Speed 32 | 50 49 37 67 130 121 84 27 26 26 26 26 26 26 29 26 26 26 27 27 27 27 27 28 28 28 28 28 30 24 24 24 24 24 24 24 Slowest Speed 150 | 50 117 37 150 130 130 140 31 26 26 26 26 26 26 150 150 26 99 27 27 27 100 28 28 28 28 28 28 102 24 24 24 24 24 24 29 Overloaded Moves . | . . . . . . . . . . . . . . . . . . . . . . . . . . . . . . . . . . . . Propulsion Burnouts . | . . . . . . . . . . . . . . . . . . . . . . . . . . . . . . . . . . . . Robots Hopped 178 | . 3 . . . . . 4 . 7 . 4 2 44 3 1 . 17 7 . 6 . 4 . 5 . . 2 18 . 16 . 7 . 22 6 Cave-ins Triggered 5 | . . . . . . . . . . . . . . . . . 1 . . . . . . . . . . 2 . 2 . . . . . Teleports 1 | . . . . . . . . . . . . . . . . . . . . . . . . . . 1 . . . . . . . . . Exploration Rate (%) 51 | 4 95 32 92 53 37 40 33 54 15 56 22 41 47 74 81 76 66 36 40 21 67 16 92 29 43 99 16 72 60 78 74 23 84 36 41 Regions Visited 35 Branch Regions 12 Pre-discovered Areas 3 | . 2 . 1 . . . . . . . . . . . . . . . . . . . . . . . . . . . . . . . . Known Exits Taken 20 | . . . . . 1 . 1 . 1 . 1 . 1 1 1 1 1 1 . 1 . 1 . 1 1 1 1 1 . 1 . 1 . 1 . Unknown Exits Taken 5 | 1 1 1 1 1 . . . . . . . . . . . . . . . . . . . . . . . . . . . . . . . Scrap Searched 2 | . . . . 2 . . . . . . . . . . . . . . . . . . . . . . . . . . . . . . . Spaces Dug 45 | . . . . . . . . . . . . . . . . . . . . . . . . . 5 . . 20 . 7 . 3 . 6 4 Terrain Destroyed 559 | . . . 10 . 2 5 12 1 . 5 32 2 36 7 13 . 3 60 . 42 5 . 86 8 7 . 1 41 30 33 8 5 4 9 92 Melee 5 | . . . . . . . . . . . . . . . . . . . . . . . . . 5 . . . . . . . . . . Projectile 259 | . . . 10 . 2 5 12 1 . 5 5 2 9 7 13 . 3 4 . . 5 . 13 8 2 . 1 41 30 33 8 5 4 9 22 AOE 295 | . . . . . . . . . . . 27 . 27 . . . . 56 . 42 . . 73 . . . . . . . . . . . 70 Actions | -11 -10 -10 -10 -9 -8 -8 -8 -8 -7 -7 -7 -7 -6 -6 -6 -6 -6 -5 -5 -4 -4 -4 -4 -3 -3 -3 -2 -2 -2 -2 -2 -1 -1 -1 -1 --------- Run | Scr Mat Min Exi Min Mat Gar Mat Gar Fac Gar Fac Gar Fac Ext Cet Arc Hub Fac Gar Fac Gar Fac Gar Res Arm Lab Res Tes Gar Sec Gar Acc Gar Acc Com Total 30738 | 100 1103 336 1574 242 505 278 764 451 575 574 916 253 2424 928 767 121 635 1426 453 995 1424 709 1233 903 997 258 587 2387 860 1744 664 696 735 1066 1055 Wait 4224 | . 124 45 102 6 41 27 50 26 34 36 92 8 235 140 153 27 25 217 162 296 453 60 140 33 315 24 93 647 80 181 46 20 182 45 59 Move 22801 | 75 769 266 1304 220 413 214 643 324 509 406 731 199 1994 547 529 89 535 1129 233 638 735 616 846 694 545 206 446 1466 630 1412 459 650 474 985 870 Hop 157 | . 3 . . . . . 3 . 6 . 4 1 39 2 1 . 17 7 . 6 . 4 . 4 . . 2 16 . 12 . 7 . 18 5 Pick Up 95 | 1 4 . 15 . 3 2 2 1 1 2 1 1 7 2 6 . . 2 . 3 5 1 4 7 5 1 1 9 2 5 1 . . . 1 Fast Attach 138 | 5 7 2 10 . 5 4 6 2 . . 5 1 9 2 10 . 4 3 . . 2 3 . 4 6 9 . 20 . 16 1 . 2 . . Attach 24 | . 1 . 3 . 3 2 1 . . 1 . . . 1 1 . . 1 . 1 1 . . 1 1 . 1 3 . 1 . . . . 1 Detach 10 | . . . . . 3 2 . . . . . . . 1 1 . . . . . . . . . . . . 1 . 1 . . . . 1 Swap 73 | . 13 . 1 . . . 3 . 3 1 5 . 6 . 4 . 1 1 . 3 2 2 1 3 8 . . 7 . 3 1 1 . 1 3 Drop 191 | . 12 2 24 . 5 4 8 2 1 1 5 2 12 3 15 . 4 4 . 3 6 4 3 8 10 7 . 28 2 13 1 . 1 . 1 Fire 1522 | 19 93 11 37 . 7 9 40 26 18 42 63 23 64 57 34 4 35 31 4 30 65 13 114 75 67 . 42 162 65 74 76 18 36 15 53 Melee 77 | . 1 2 60 . . . . . . . . . . . . . . . . . 1 . . . 5 6 . 2 . . . . . . . Ram . | . . . . . . . . . . . . . . . . . . . . . . . . . . . . . . . . . . . . Kick 1 | . . . . 1 . . . . . . . . . . . . . . . . . . . . . . . . . . . . . . . Crush . | . . . . . . . . . . . . . . . . . . . . . . . . . . . . . . . . . . . . Escape Stasis 524 | . . . . . . . . 60 . 72 . 18 . 122 . . 1 . 54 . 70 . 36 . . . . . 26 5 35 . 18 . 7 Rewire 72 | . . . . . . . . . . . . . . 18 . . . . . . 28 . 26 . . . . . . . . . . . . Trap 58 | . 55 1 2 . . . . . . . . . . . . . . . . . . . . . . . . . . . . . . . . Miscellaneous 771 | . 21 7 16 15 25 14 8 10 3 13 10 . 58 33 13 1 13 31 . 15 56 6 63 74 35 5 2 26 55 21 44 . 22 2 54 Route ------- -11/Scrapyard -10/Materials (discovered 5 exits: [*Mat x3] / *Min x2) -10/Mines (discovered 2 exits: [*Mat] / *Exi) -10/Exiles (discovered 2 exits: *Min x2) -9/Mines -8/Materials (discovered 2 exits: *Fac / Gar) -8/Garrison -8/Materials -8/Garrison (discovered 2 exits: *Fac x2) -7/Factory -7/Garrison (discovered 2 exits: *Fac x2) -7/Factory (discovered 3 exits: *Fac / [Low] / Gar) -7/Garrison -6/Factory (discovered 6 exits: *Fac / Low x2 / *Ext x2 / Gar) -6/Extension (discovered 3 exits: *Fac x2 / *Cet) -6/Cetus (discovered 2 exits: *Fac / *Arc) -6/Archives (discovered 3 exits: *Fac / *Hub x2) -6/Hub_04(d) (discovered 4 exits: *Fac x4) -5/Factory (discovered 4 exits: *Fac / *Upp x2 / Gar) -5/Garrison -4/Factory (discovered 3 exits: *Upp x2 / Gar) -4/Garrison (discovered 2 exits: *Fac x2) -4/Factory (discovered 4 exits: *Upp x2 / Gar / Gar) -4/Garrison (discovered 3 exits: *Res x3) -3/Research (discovered 6 exits: Res x3 / *Arm / *Qua x2) -3/Armory (discovered 3 exits: Res x2 / *Lab) -3/Lab -2/Research (discovered 6 exits: Acc x3 / *Tes x2 / Gar) -2/Testing (discovered 2 exits: *Acc / Gar) -2/Garrison (discovered 3 exits: *Sec x3) -2/Section 7 (discovered 2 exits: *Acc / Gar) -2/Garrison (discovered 3 exits: *Acc x3) -1/Access (discovered 2 exits: Com / Gar) -1/Garrison (discovered 3 exits: *Acc x3) -1/Access (discovered 2 exits: Sur / *Com) -1/Command To Epsilon Eridani History --------- Turn | Location | Event 2 | -11/Scrapyard | Met Revision 17 4 | -11/Scrapyard | Upgraded with Propulsion slot (x1) 4 | -11/Scrapyard | Upgraded with Utility slot (x1) 4 | -11/Scrapyard | Upgraded with Weapon slot (x1) 9 | -11/Scrapyard | Discovered new exit (range 15) 97 | -11/Scrapyard | Entered Materials 175 | -10/Materials | Discovered new exit (range 11) 313 | -10/Materials | Build established: Mutant 375 | -10/Materials | Discovered new exit (range 13) 467 | -10/Materials | Reached level 2 532 | -10/Materials | Discovered new exit (range 8) 591 | -10/Materials | Discovered new exit (range 17) 604 | -10/Materials | Discovered new exit (range 16) 643 | -10/Materials | Reached level 3 647 | -10/Materials | Upgraded with Utility slot (x2) 792 | -10/Materials | Repaired Shield Generator 965 | -10/Materials | Entered Mines 969 | -10/Mines | Discovered new exit (range 9) 985 | -10/Mines | Met a Derelict shopkeep closing up shop 1038 | -10/Mines | Met a Derelict bent on vengeance 1072 | -10/Mines | Deemed a non-threat by the Exiles lab entrance 1072 | -10/Mines | Discovered new exit (range 5) 1078 | -10/Mines | Found a hidden stash of uninstalled traps 1080 | -10/Mines | Assembled infested the area 1085 | -10/Mines | Assisted by a Guerilla fighting off Assembled 1098 | -10/Mines | Joined a pair of Derelicts in attacking an 0b10 outpost 1145 | -10/Mines | Entered Exiles 1147 | -10/Exiles | Reached level 4 1150 | -10/Exiles | Discovered new exit (range 16) 1170 | -10/Exiles | Met 8R-AWN 1176 | -10/Exiles | Met EX-HEX 1245 | -10/Exiles | Met EX-BIN 1252 | -10/Exiles | Met EX-DEC 1254 | -10/Exiles | Learned location of Zion (-7) 1269 | -10/Exiles | Visited The Gauntlet 1287 | -10/Exiles | Build established: Hacker-Mutant 1355 | -10/Exiles | Aligned with FarCom system 1355 | -10/Exiles | Given EX-Vault access code 1592 | -10/Exiles | Opened EX-Vault 1595 | -10/Exiles | Found AWS/Gauss 1605 | -10/Exiles | Found Gui. Plasma Cannon 1632 | -10/Exiles | Warned to stay clear of 0b10 Research branches 1650 | -10/Exiles | Attacked by the Exiles 1706 | -10/Exiles | Destroyed 7 combat bots 1756 | -10/Exiles | Core integrity fell below 50% 1770 | -10/Exiles | Destroyed 8R-AWN 1798 | -10/Exiles | Found 8R-AWN's Boregun 1805 | -10/Exiles | Found Exp. Targeting Computer 2016 | -10/Exiles | Destroyed EX-HEX 2028 | -10/Exiles | Destroyed EX-BIN 2054 | -10/Exiles | Destroyed EX-DEC 2074 | -10/Exiles | Build established: Scavenger-Mutant 2131 | -10/Exiles | Found Deploy-a-Sentry 2155 | -10/Exiles | Found AWS/EX-DEC 2354 | -10/Exiles | Discovered new exit (range 10) 2365 | -10/Exiles | Left Exiles lab with AWS/Gauss 2365 | -10/Exiles | Entered Mines 2616 | -9/Mines | Discovered new exit (range 7) 2631 | -9/Mines | Met a Derelict who couldn't figure out how to use a Trap Extractor 2674 | -9/Mines | Entered Materials 2676 | -8/Materials | Reached level 5 2723 | -8/Materials | Reached level 6 2790 | -8/Materials | Identified exit to Garrison 2960 | -8/Materials | Upgraded with Utility slot (x1) 2973 | -8/Materials | Upgraded with Propulsion slot (x1) 3097 | -8/Materials | Discovered new exit (range 16) 3269 | -8/Materials | Entered Garrison 3271 | -8/Garrison | Reached level 7 3275 | -8/Garrison | Installed Relay Interface Framework 3344 | -8/Garrison | Triggered checkpoint 3409 | -8/Garrison | Reached level 8 3426 | -8/Garrison | Triggered checkpoint 3452 | -8/Garrison | Destroyed 10 combat bots 3466 | -8/Garrison | Triggered checkpoint 3475 | -8/Garrison | Upgraded with Propulsion slot (x1) 3510 | -8/Garrison | Discovered new exit (range 8) 3524 | -8/Garrison | Entered Materials 3587 | -8/Materials | Identified exit to Garrison 3642 | -8/Materials | Repaired Broken Adv. Weapon Cycler? 3748 | -8/Materials | Reached level 9 3748 | -8/Materials | Upgraded with Utility slot (x1) 3851 | -8/Materials | Entered Garrison 3851 | -8/Garrison | Accompanied by 3 allies 3864 | -8/Garrison | Triggered checkpoint 3866 | -8/Garrison | Garrison Relay disabled 3908 | -8/Garrison | Triggered checkpoint 3914 | -8/Garrison | Triggered checkpoint 3966 | -8/Garrison | Discovered new exit (range 16) 4000 | -8/Garrison | Triggered checkpoint 4006 | -8/Garrison | Reached level 10 4008 | -8/Garrison | Upgraded with Utility slot (x1) 4048 | -8/Garrison | Triggered checkpoint 4048 | -8/Garrison | Discovered new exit (range 12) 4053 | -8/Garrison | Expanded RIF knowledge: Patrol Navigation 4062 | -8/Garrison | Garrison Relay disabled 4075 | -8/Garrison | Entered Factory 4077 | -7/Factory | Reached level 11 4079 | -7/Factory | Identified exit to Garrison 4196 | -7/Factory | Reached level 12 4281 | -7/Factory | Entered Garrison 4339 | -7/Garrison | Reached level 13 4342 | -7/Garrison | Upgraded with Utility slot (x1) 4363 | -7/Garrison | Build established: Hacker-Sprinter 4425 | -7/Garrison | Discovered new exit (range 17) 4433 | -7/Garrison | Garrison Relay disabled 4548 | -7/Garrison | Triggered checkpoint 4561 | -7/Garrison | Garrison Relay disabled 4570 | -7/Garrison | Discovered new exit (range 12) 4575 | -7/Garrison | Expanded RIF knowledge: Alert ID Control 4576 | -7/Garrison | Entered Factory 4697 | -7/Factory | Fabricated O-16 Technician (x1) 4704 | -7/Factory | Discovered new exit (range 5) 4724 | -7/Factory | Reached level 14 4827 | -7/Factory | Destroyed 7 combat bots 4843 | -7/Factory | P-60 Hacker assimilated allied Technician 4a 4853 | -7/Factory | Discovered new exit (range 16) 4887 | -7/Factory | Build established: Hacker-Ninja 4899 | -7/Factory | Identified exit to Garrison 4928 | -7/Factory | Core integrity fell below 50% 4990 | -7/Factory | Local fabrication network quarantined 4995 | -7/Factory | Reached level 15 5001 | -7/Factory | Upgraded with Utility slot (x1) 5012 | -7/Factory | Entered Garrison 5014 | -7/Garrison | Expanded RIF knowledge: Coupler Efficiency 5052 | -7/Garrison | Spotted B-75 Beast 5107 | -7/Garrison | Core integrity fell below 20% 5124 | -7/Garrison | Triggered checkpoint 5133 | -7/Garrison | Discovered new exit (range 8) 5135 | -7/Garrison | Entered Factory 5136 | -6/Factory | Core integrity fell below 50% 5136 | -6/Factory | Core integrity fell below 20% 5137 | -6/Factory | Reached level 16 5139 | -6/Factory | Identified exit to Garrison 5213 | -6/Factory | Repaired Imp. Shield Generator 5233 | -6/Factory | Repaired Imp. Light Armor Plating 5252 | -6/Factory | Fabricated L-31 Rogue? 5331 | -6/Factory | Fabricated Adv. Signal Interpreter? 5377 | -6/Factory | Build established: Hacker-Scout 5518 | -6/Factory | Fabricated Quantum Capacitor? 5597 | -6/Factory | Reached level 17 5668 | -6/Factory | Discovered new exit (range 4) 5702 | -6/Factory | Identified exit to Factory 5721 | -6/Factory | Fabricated Y-54 Guardian? 5736 | -6/Factory | Local fabrication network quarantined 5784 | -6/Factory | Repaired Adv. Terrain Scanner 5793 | -6/Factory | Found Prototype Processor 5793 | -6/Factory | Identified Exp. Signal Interpreter 5799 | -6/Factory | Identified exit to Lower Caves 5799 | -6/Factory | Identified exit to Extension 5835 | -6/Factory | First assault squad dispatched 5854 | -6/Factory | Repaired Adv. ECM Suite 5862 | -6/Factory | Found Powered Armor 6096 | -6/Factory | Identified exit to Garrison 6155 | -6/Factory | Spotted B-75 Beast 6163 | -6/Factory | Entered Extension 6165 | -6/Extension | Reached level 18 6238 | -6/Extension | Rescued a captive Derelict 6238 | -6/Extension | Rescued a captive Derelict 6283 | -6/Extension | Rescued a captive Derelict 6299 | -6/Extension | Rescued a captive Derelict 6299 | -6/Extension | Rescued a captive Derelict 6376 | -6/Extension | Rescued a captive Derelict 6377 | -6/Extension | Rescued a captive Derelict 6438 | -6/Extension | Reached level 19 6439 | -6/Extension | Upgraded with Utility slot (x1) 6459 | -6/Extension | Spotted B-75 Beast 6480 | -6/Extension | Spotted B-75 Beast 6484 | -6/Extension | Destroyed B-75 Beast 6504 | -6/Extension | Discovered exit to Factory (range 19) 6533 | -6/Extension | Destroyed B-75 Beast 6602 | -6/Extension | Rescued a captive Derelict 6605 | -6/Extension | Rescued a captive Derelict 6622 | -6/Extension | Rescued a captive Derelict 6622 | -6/Extension | Rescued a captive Derelict 6627 | -6/Extension | Rescued a captive Derelict 6627 | -6/Extension | Rescued a captive Derelict 6671 | -6/Extension | Rescued A7 6707 | -6/Extension | Rescued a captive Derelict 6712 | -6/Extension | Rescued a captive Derelict 6733 | -6/Extension | Discovered new exit (range 17) 6750 | -6/Extension | Discovered exit to Factory (range 10) 6756 | -6/Extension | Identified exit to Cetus 6777 | -6/Extension | Entered Cetus 6777 | -6/Cetus | Accompanied by 9 allies 6782 | -6/Cetus | Acquired a Cetus Manufacturing Module code from A7 6788 | -6/Cetus | Spotted Cetus Guard 6788 | -6/Cetus | Spotted Cetus Guard 6794 | -6/Cetus | Spotted Cetus Guard 6795 | -6/Cetus | Spotted Cetus Guard 6796 | -6/Cetus | Allies destroyed Cetus Guard 6801 | -6/Cetus | Allies destroyed Cetus Guard 6802 | -6/Cetus | Destroyed Cetus Guard 6809 | -6/Cetus | Allies destroyed Cetus Guard 6845 | -6/Cetus | Started Cetus Manufacturing Module 6863 | -6/Cetus | Escorted A7 to Cetus Mainframe 6870 | -6/Cetus | Manufactured an Enhanced Grunt 6878 | -6/Cetus | Discovered new exit (range 17) 6882 | -6/Cetus | Identified exit to Archives 6895 | -6/Cetus | Manufactured an Enhanced Grunt 6903 | -6/Cetus | Spotted Cetus Guard 6904 | -6/Cetus | Spotted Cetus Guard 6920 | -6/Cetus | Manufactured an Enhanced Grunt 6928 | -6/Cetus | Allies destroyed Cetus Guard 6945 | -6/Cetus | Manufactured an Enhanced Grunt 6945 | -6/Cetus | Discovered exit to Factory (range 17) 6948 | -6/Cetus | Met Revision 17 6970 | -6/Cetus | Manufactured an Enhanced Grunt 7056 | -6/Cetus | Reached level 20 7102 | -6/Cetus | Destroyed A7 7105 | -6/Cetus | Extracted ID and sensor layout for unrecognized location from A7's data core 7143 | -6/Cetus | Found Prototype Protection 7144 | -6/Cetus | Identified Med. Regenerative Plating 7197 | -6/Cetus | Entered Archives 7197 | -6/Archives | Accompanied by 10 allies 7201 | -6/Archives | Met Zhirov 7202 | -6/Archives | Discovered new exit (range 17) 7204 | -6/Archives | Discovered new exit (range 18) 7205 | -6/Archives | Read partially decrypted archive contents 7207 | -6/Archives | Reinforcements dispatched to Archives 7212 | -6/Archives | Unable to access archive contents 7244 | -6/Archives | Discovered exit to Factory (range 17) 7252 | -6/Archives | Reinforcements dispatched to Archives 7254 | -6/Archives | Zhirov warped through subspace 7257 | -6/Archives | Identified exit to Hub_04(d) 7258 | -6/Archives | Entered Hub_04(d) 7298 | -6/Hub_04(d) | Discovered exit to Factory (range 15) 7324 | -6/Hub_04(d) | Garrison activated, responded to threat 7341 | -6/Hub_04(d) | Reached level 21 7352 | -6/Hub_04(d) | Identified exit to Garrison 7426 | -6/Hub_04(d) | Found Exp. Signal Interpreter 7479 | -6/Hub_04(d) | Network Hub disabled 7479 | -6/Hub_04(d) | Network Hub disabled 7479 | -6/Hub_04(d) | Network Hub disabled 7501 | -6/Hub_04(d) | Network Hub disabled 7501 | -6/Hub_04(d) | Network Hub disabled 7516 | -6/Hub_04(d) | Spotted Lightning 7525 | -6/Hub_04(d) | Crushed by falling debris 7530 | -6/Hub_04(d) | Spotted Lightning 7530 | -6/Hub_04(d) | Spotted Lightning 7533 | -6/Hub_04(d) | Entered Factory 7636 | -5/Factory | Discovered new exit (range 17) 7654 | -5/Factory | Repaired Powered Armor 7663 | -5/Factory | Identified exit to Upper Caves 7794 | -5/Factory | Fabricated Lrn. Terrain Scanner (x1) 7804 | -5/Factory | Spotted B-75 Beast 7833 | -5/Factory | First assault squad dispatched 7853 | -5/Factory | Reached level 22 7875 | -5/Factory | Upgraded with Utility slot (x1) 7913 | -5/Factory | Central database locked down 8056 | -5/Factory | Destroyed 7 combat bots 8064 | -5/Factory | Discovered new exit (range 11) 8066 | -5/Factory | Identified exit to Factory 8170 | -5/Factory | Identified exit to Garrison 8170 | -5/Factory | Entered Garrison 8375 | -5/Garrison | Discovered exit to Factory (range 8) 8379 | -5/Garrison | Expanded RIF knowledge: Robot Detection 8458 | -5/Garrison | Entered Factory 8460 | -4/Factory | Reached level 23 8460 | -4/Factory | Upgraded with Power slot (x1) 8865 | -4/Factory | Discovered new exit (range 19) 8865 | -4/Factory | Identified exit to Upper Caves 8865 | -4/Factory | Reached level 24 9021 | -4/Factory | Identified exit to Garrison 9021 | -4/Factory | Entered Garrison 9029 | -4/Garrison | Spotted B-86 Titan 9378 | -4/Garrison | Triggered checkpoint 9392 | -4/Garrison | Destroyed 8 combat bots 9399 | -4/Garrison | Reached level 25 9475 | -4/Garrison | Core integrity fell below 50% 9498 | -4/Garrison | Upgraded with Utility slot (x1) 9507 | -4/Garrison | Destroyed B-86 Titan 9596 | -4/Garrison | Triggered checkpoint 9760 | -4/Garrison | Garrison Relay disabled 9772 | -4/Garrison | Triggered checkpoint 9775 | -4/Garrison | Discovered new exit (range 11) 9776 | -4/Garrison | Triggered checkpoint 9787 | -4/Garrison | Identified exit to Factory 9816 | -4/Garrison | Triggered checkpoint 9862 | -4/Garrison | Discovered exit to Factory (range 11) 9866 | -4/Garrison | Expanded RIF knowledge: Program Shield 9879 | -4/Garrison | Garrison Relay disabled 9880 | -4/Garrison | Triggered checkpoint 9989 | -4/Garrison | Entered Factory 9989 | -4/Factory | Accompanied by 9 allies 9992 | -4/Factory | Identified exit to Garrison 10036 | -4/Factory | Reached level 26 10123 | -4/Factory | Fabricated Adv. Powered Armor (x1) 10169 | -4/Factory | Garrison activated, responded to threat 10193 | -4/Factory | Fabricated Exp. Terrain Scanner (x1) 10245 | -4/Factory | Fabricated Biomechanical Wings (x1) 10263 | -4/Factory | Identified exit to Garrison 10264 | -4/Factory | Entered Garrison 10291 | -4/Garrison | Spotted B-86 Titan 10358 | -4/Garrison | Destroyed B-86 Titan 10387 | -4/Garrison | Discovered new exit (range 17) 10392 | -4/Garrison | Identified exit to Research 10460 | -4/Garrison | Triggered checkpoint 10470 | -4/Garrison | Garrison Relay disabled 10492 | -4/Garrison | Destroyed 10 combat bots 10520 | -4/Garrison | Triggered checkpoint 10531 | -4/Garrison | Triggered checkpoint 10556 | -4/Garrison | Discovered exit to Research (range 13) 10568 | -4/Garrison | Garrison Relay disabled 10596 | -4/Garrison | Triggered checkpoint 10669 | -4/Garrison | Phase Generator disabled 10684 | -4/Garrison | Triggered checkpoint 10750 | -4/Garrison | Triggered checkpoint 10767 | -4/Garrison | Destroyed 7 combat bots 10782 | -4/Garrison | Triggered checkpoint 10802 | -4/Garrison | Triggered checkpoint 10834 | -4/Garrison | Garrison Relay disabled 10846 | -4/Garrison | Triggered checkpoint 10855 | -4/Garrison | Discovered exit to Research (range 10) 10860 | -4/Garrison | Expanded RIF knowledge: Coupler Efficiency 10866 | -4/Garrison | Reached level 27 10949 | -4/Garrison | Garrison Relay disabled 11030 | -4/Garrison | Entered Research 11030 | -3/Research | Accompanied by 9 allies 11083 | -3/Research | Discovered new exit (range 30) 11096 | -3/Research | Reached level 28 11121 | -3/Research | Identified exit to Research 11215 | -3/Research | Identified exit to Armory 11215 | -3/Research | Identified exit to Quarantine 11217 | -3/Research | Adv. Hacking Suite fried by hacking feedback 11230 | -3/Research | Revision forces began assault on 0b10 11249 | -3/Research | Fabricated Exp. Terrain Scan Processor (x1) 11294 | -3/Research | Spotted B-86 Titan 11366 | -3/Research | Reached level 29 11434 | -3/Research | Met up with Revision 17++ 11452 | -3/Research | Destroyed 21 combat bots 11516 | -3/Research | Found Prototype Device 11516 | -3/Research | Identified Exp. Thermal Shield 11524 | -3/Research | Entered Armory 11774 | -3/Armory | First assault squad dispatched 11857 | -3/Armory | Discovered exit to Research (range 27) 11902 | -3/Armory | Destroyed 8 combat bots 11953 | -3/Armory | Repaired Broken Imp. Phase Shifter 12044 | -3/Armory | Reached level 30 12062 | -3/Armory | Discovered exit to Research (range 11) 12068 | -3/Armory | Destroyed 7 combat bots 12068 | -3/Armory | Found Exp. System Shield 12071 | -3/Armory | Found Prototype Device 12071 | -3/Armory | Identified Exp. Focal Shield 12074 | -3/Armory | Found Prototype Device 12074 | -3/Armory | Identified EM Disruption Field 12124 | -3/Armory | Fabricated L-61 Swordsman? 12154 | -3/Armory | Destroyed 7 combat bots 12156 | -3/Armory | Found Prototype Slashing Weapon 12156 | -3/Armory | Identified Vibroblade 12157 | -3/Armory | Upgraded with Utility slot (x1) 12168 | -3/Armory | Discovered new exit (range 26) 12184 | -3/Armory | Identified exit to Lab 12205 | -3/Armory | Fabricated O-16 Technician? 12217 | -3/Armory | Entered Lab 12217 | -3/Lab | Accompanied by 4 allies 12217 | -3/Lab | Discovered exit to Research (range 9) 12221 | -3/Lab | Hidden lab's door opened automatically 12221 | -3/Lab | Sensor layout match revealed 12221 | -3/Lab | Unable to decrypt terminal 12222 | -3/Lab | Gained access to the hidden lab's interior 12227 | -3/Lab | Unable to decrypt terminal 12246 | -3/Lab | Unable to decrypt terminal 12263 | -3/Lab | Found Prototype Hackware 12263 | -3/Lab | Identified Quantum Router 12266 | -3/Lab | Found Prototype Protection 12266 | -3/Lab | Identified Exp. Powered Armor 12275 | -3/Lab | Found Alien Artifact 12275 | -3/Lab | Identified Core Regenerator 12275 | -3/Lab | Used Core Regenerator, restored core integrity (+0) 12281 | -3/Lab | Found Alien Artifact 12281 | -3/Lab | Identified Integrated Dissipator 12281 | -3/Lab | Installed Integrated Dissipator, increased core heat dissipation (+2%) 12286 | -3/Lab | Found Alien Artifact 12286 | -3/Lab | Identified Transdimensional Reconstructor 12286 | -3/Lab | Warped through subspace 12298 | -3/Lab | Found Prototype Energy Cannon 12298 | -3/Lab | Identified Potential Cannon 12301 | -3/Lab | Found Prototype Energy Cannon 12301 | -3/Lab | Identified Warp Cannon 12337 | -3/Lab | Entered Research 12337 | -2/Research | Accompanied by 4 allies 12339 | -2/Research | Reached level 31 12339 | -2/Research | Upgraded with Weapon slot (x1) 12364 | -2/Research | Identified exit to Access 12364 | -2/Research | Identified exit to Testing 12504 | -2/Research | Garrison activated, responded to threat 12590 | -2/Research | Identified exit to Garrison 12624 | -2/Research | Entered Testing 12624 | -2/Testing | Accompanied by 1 ally 12626 | -2/Testing | Reached level 32 12627 | -2/Testing | Identified exit to Garrison 12640 | -2/Testing | Found Prototype Energy Cannon 12641 | -2/Testing | Identified Cld. Nova Cannon 12664 | -2/Testing | Build established: Hacker-Ninja 12678 | -2/Testing | Found Prototype Protection 12678 | -2/Testing | Identified SHELL Armor 12694 | -2/Testing | Protovariant out of control (PX-EG0A1XZQSM) 12694 | -2/Testing | Unleashed a protovariant (PX-EG0A1XZQSM) 12703 | -2/Testing | Found Prototype Energy Cannon 12703 | -2/Testing | Identified Disintegrator 12716 | -2/Testing | Found Prototype Device 12716 | -2/Testing | Identified AEGIS Remote Shield 12734 | -2/Testing | Spotted PY-SFSY9M98I1 12740 | -2/Testing | Found Prototype Processor 12740 | -2/Testing | Identified Exp. Melee Analysis Suite 12872 | -2/Testing | Spotted PX-EG0A1XZQSM 12952 | -2/Testing | P-80 Master assimilated allied H-88 Terminator 12972 | -2/Testing | Build established: Hacker-Scout 13006 | -2/Testing | Discovered exit to Access (range 14) 13116 | -2/Testing | Repaired Broken Hvy. Hardcell Cannon 13213 | -2/Testing | Spotted Striker 13250 | -2/Testing | Scanned by Researcher 13260 | -2/Testing | Spotted Striker 13266 | -2/Testing | Spotted Alpha 7 13273 | -2/Testing | Destroyed Striker 13273 | -2/Testing | Destroyed Striker 13300 | -2/Testing | Destroyed Alpha 7 13304 | -2/Testing | Found Prototype Device 13304 | -2/Testing | Identified Exp. ECM Suite 13344 | -2/Testing | Found Exp. Target Analyzer 13374 | -2/Testing | First assault squad dispatched 13464 | -2/Testing | Found Prototype Processor 13464 | -2/Testing | Identified Exp. Core Analyzer 13600 | -2/Testing | Protovariant out of control (PY-SFSY9M98I1) 13600 | -2/Testing | Unleashed a protovariant (PY-SFSY9M98I1) 13674 | -2/Testing | Crushed by falling debris 13678 | -2/Testing | Fabricated Cld. Q-thruster? 13687 | -2/Testing | Crushed by falling debris 13690 | -2/Testing | Reached level 33 13692 | -2/Testing | Upgraded with Propulsion slot (x1) 13751 | -2/Testing | Build established: Scavenger-Scout 13935 | -2/Testing | Fabricated Cld. Q-thruster? 14038 | -2/Testing | Local fabrication network quarantined 14094 | -2/Testing | Entered Garrison 14102 | -2/Garrison | Triggered checkpoint 14136 | -2/Garrison | Garrison Relay disabled 14165 | -2/Garrison | Spotted B-90 Cyclops 14225 | -2/Garrison | Destroyed B-90 Cyclops 14256 | -2/Garrison | Triggered checkpoint 14276 | -2/Garrison | Discovered new exit (range 14) 14348 | -2/Garrison | Triggered checkpoint 14440 | -2/Garrison | Destroyed 11 combat bots 14492 | -2/Garrison | Discovered new exit (range 30) 14544 | -2/Garrison | Triggered checkpoint 14549 | -2/Garrison | Discovered new exit (range 11) 14550 | -2/Garrison | Triggered checkpoint 14560 | -2/Garrison | Expanded RIF knowledge: Autooverride 14561 | -2/Garrison | Entered Section 7 14615 | -2/Section 7 | Found Alien Artifact 14619 | -2/Section 7 | Identified Core Reset Matrix 14660 | -2/Section 7 | Found Alien Artifact 14662 | -2/Section 7 | Identified Integrated Reactor 14662 | -2/Section 7 | Installed Integrated Reactor, increased core energy generation (+2%) 14766 | -2/Section 7 | Spotted B-90 Cyclops 14774 | -2/Section 7 | Reached level 34 14794 | -2/Section 7 | Destroyed B-90 Cyclops 14919 | -2/Section 7 | Found Integrated Reactor 14919 | -2/Section 7 | Installed Integrated Reactor, increased core energy generation (+2%) 14957 | -2/Section 7 | Found Alien Artifact 14957 | -2/Section 7 | Identified Integrity Redistributor 14957 | -2/Section 7 | Used Integrity Redistributor, redistributed integrity from core (-0) 14972 | -2/Section 7 | Spotted Executioner 15080 | -2/Section 7 | Garrison activated, responded to threat 15089 | -2/Section 7 | Found Alien Energy Gun 15089 | -2/Section 7 | Identified Sigix Quantum Sheargun 15134 | -2/Section 7 | Found Transdimensional Reconstructor 15185 | -2/Section 7 | Crushed by falling debris 15187 | -2/Section 7 | Crushed by falling debris 15205 | -2/Section 7 | Found Integrated Reactor 15205 | -2/Section 7 | Installed Integrated Reactor, increased core energy generation (+2%) 15229 | -2/Section 7 | Found Alien Artifact 15229 | -2/Section 7 | Identified LRC Insulator 15229 | -2/Section 7 | Installed LRC Insulator, gained EM resistance (25) 15230 | -2/Section 7 | Found Alien Artifact 15230 | -2/Section 7 | Identified LRC Energy Well 15230 | -2/Section 7 | Installed LRC Energy Well, increased energy storage capacity (+250) 15234 | -2/Section 7 | Found Alien Artifact 15234 | -2/Section 7 | Identified LRC Armor 15234 | -2/Section 7 | Installed LRC Armor, increased core integrity (+250) 15253 | -2/Section 7 | Spotted B-99 Colossus 15302 | -2/Section 7 | Identified exit to Garrison 15302 | -2/Section 7 | Entered Garrison 15313 | -2/Garrison | Triggered checkpoint 15338 | -2/Garrison | Garrison Relay disabled 15442 | -2/Garrison | Triggered checkpoint 15469 | -2/Garrison | Triggered checkpoint 15514 | -2/Garrison | Destroyed 7 combat bots 15526 | -2/Garrison | Discovered exit to Access (range 27) 15551 | -2/Garrison | Discovered exit to Access (range 19) 15586 | -2/Garrison | Triggered checkpoint 15596 | -2/Garrison | Discovered exit to Access (range 20) 15608 | -2/Garrison | Triggered checkpoint 15639 | -2/Garrison | Build established: Hacker-Scout 15670 | -2/Garrison | Garrison Relay disabled 15682 | -2/Garrison | Triggered checkpoint 15690 | -2/Garrison | Expanded RIF knowledge: Structural Interface 15692 | -2/Garrison | Entered Access 15714 | -1/Access | Reached level 35 15736 | -1/Access | Found Exp. Signal Interpreter 15758 | -1/Access | Garrison activated, responded to threat 15844 | -1/Access | Identified exit to Command 15912 | -1/Access | Identified exit to Garrison 15912 | -1/Access | Entered Garrison 15934 | -1/Garrison | Spotted B-99 Colossus 16130 | -1/Garrison | Triggered checkpoint 16130 | -1/Garrison | Triggered checkpoint 16133 | -1/Garrison | Destroyed B-99 Colossus 16161 | -1/Garrison | Triggered checkpoint 16176 | -1/Garrison | Found Prototype Ballistic Gun 16176 | -1/Garrison | Identified Multirail 16178 | -1/Garrison | Upgraded with Weapon slot (x1) 16194 | -1/Garrison | Discovered new exit (range 5) 16195 | -1/Garrison | Identified exit to Access 16283 | -1/Garrison | Discovered exit to Access (range 29) 16283 | -1/Garrison | Garrison Relay disabled 16314 | -1/Garrison | Discovered exit to Access (range 20) 16318 | -1/Garrison | Garrison Relay disabled 16326 | -1/Garrison | Expanded RIF knowledge: Autooverride 16327 | -1/Garrison | Entered Access 16330 | -1/Access | Maximum security lockdown engaged 16473 | -1/Access | Spotted Striker 16473 | -1/Access | Spotted Striker 16473 | -1/Access | Spotted Executioner 16475 | -1/Access | Discovered new exit (range 19) 16507 | -1/Access | Spotted Striker 16507 | -1/Access | Spotted Executioner 16507 | -1/Access | Spotted Striker 16576 | -1/Access | Spotted B-99 Colossus 16576 | -1/Access | Spotted B-99 Colossus 16637 | -1/Access | Discovered exit to Command (range 27) 16655 | -1/Access | Entered Command 16657 | -1/Command | Reached level 36 16756 | -1/Command | Spotted B-99 Colossus 16821 | -1/Command | High security lockdown imminent 16827 | -1/Command | Discovered new exit (range 25) 16841 | -1/Command | Disengaged cave seal 16846 | -1/Command | Spotted Executioner 16846 | -1/Command | Spotted Executioner 16846 | -1/Command | Spotted Executioner 16846 | -1/Command | Spotted Executioner 16846 | -1/Command | Spotted Striker 16846 | -1/Command | Spotted Striker 16846 | -1/Command | Spotted Alpha 7 16846 | -1/Command | Spotted Alpha 7 16847 | -1/Command | Spotted B-99 Colossus 16851 | -1/Command | Spotted B-99 Colossus 16852 | -1/Command | Failed to warp due to unstable space 16901 | -1/Command | High security lockdown engaged 16904 | -1/Command | Spotted B-99 Colossus 16994 | -1/Command | Destroyed Alpha 7 17020 | -1/Command | Found Antimissile System 17024 | -1/Command | Phase Generator disabled 17067 | -1/Command | Destroyed Alpha 7 17104 | -1/Command | Spotted Executioner 17105 | -1/Command | Spotted Striker 17106 | -1/Command | Spotted Striker 17130 | -1/Command | Identified exit to Surface 17130 | *** | Escaped! Last Messages --------------- 17105_ P-80 Master unfolds itself. 17105_ Striker unfolds itself. 17105_ P-80 Master unfolds itself. 17105_ Critical hit. 17105_ P-80 Master knocked back. 17106_ Knocked back. 17106_ Slug penetrates K-01 Serf. 17106_ K-01 Serf destroyed. 17106_ Slug penetrates Wall. 17122_ Cld. Q-thruster permanently disabled. 17122_ Overload: Short circuit. 17125_ Dropped Antimissile System. 17127_ Triggered Stasis Trap. 17127_ A bubble of rippling energy engulfs the area. 17127_ Field strength at 95. 17128_ Field strength at 90. 17129_ Field strength at 85. 17130_ EXIT=IDENTIFIED: SURFACE [Achievement: Collector] [Achievement: One Last FU] Map ----- +----------------------------------------------------+ | | | | | | | | | | | | | | | | | | | ############?##?#?#####?#############?##?#####?### | | ?###??#?########?######################## | | #############?####??##################### | | ##### ##?###################?####??### | | + # ##?#######################?##### | | # # ################################ | | # #Ke +p k # | | + + ########################### # | | +######## p# #?##?########?############# ## | | # ######################## " | | p# ### BB ############ | | # ### BB ############ ! | | ###+#/######## " #E# # #### | | = # K #### """""" E ^ "" | | # ! ;; " " !%m%!! | | # #### ^ "" " ^ ! +=!% = | | # #### " @" " ] %![!=!%! | | # #### " " ![ *%!/* | | # #### """""" ^ !="=%%=[ | | # = #### # # # " ""! * !! " | | # #### ? BB###?###""##*## #" | | # #### BB############ ##### | | ####+################?###?################## | | ######?################################ | | ############################?##### | | ######## ####### #?############ | | ######## ####### = #######?###### | | ########+####### ######### #### | | #### #### ####### ## | | #### k #### = #######"""""## | | #### #### / %!=+ | | #### ###########+##############""#="" | | #### !! + ############ ""#"## | | #### !! ########## ## ?? #?## " | | #### ! ########## ## ??## #### | | #### ########## ##""? #### #### | | #### ### ##### ##"R #### ######### | | #######+#####" #### | #"?" ? #### ######### | | """T"" # ?" ##?# ######### | | """ "" "%" + ? #### #####?### | | " # # ? # ######### | +----------------------------------------------------+ Best States ------------- Heat Dissipation 81 Energy Generation 90 Energy Capacity 850 Matter Stores 850 Matter Capacity 850 Sight Range 18 Robot Scan Range 20 Terrain Scan Range 30 Terrain Scan Density 1310 ECM Strength 5 Additional Mass Support 16 Armor Coverage 625 Resistance: KI 5 Resistance: TH 10 Resistance: EM 25 Weapon Cycling 25 Evasion (%) 79 Targeting Accuracy 12 Target Analysis 12 Core Analysis 15 Armor Integrity Analysis 66 Salvage Targeting 1 Offensive Hacking 24 Defensive Hacking 35 Item Schematics ----------------- Imp. Light Armor Plating | -8/Materials | Hacked Adv. Weapon Cycler | -8/Materials | Scanalyzed Cold Fusion Reactor | -8/Materials | Scanalyzed Adv. Myomer Leg | -8/Materials | Scanalyzed Hacking Suite | -8/Materials | Hacked Quantum Capacitor | -6/Factory | Hacked Adv. Signal Interpreter | -6/Factory | Hacked Imp. System Backup Module | -6/Factory | Scanalyzed Power Sword | -6/Factory | Scanalyzed Imp. System Restoration Module | -6/Factory | Downloaded KE Penetrator | -6/Factory | Hacked Adv. ECM Suite | -6/Factory | Hacked Imp. Antigrav System | -6/Factory | Hacked Powered Armor | -6/Factory | Hacked Enh. Autogun | -6/Factory | Hacked Prc. Assault Rifle | -6/Factory | Hacked Adv. Targeting Computer | -6/Extension | Hacked Imp. Salvage Targeting Computer | -6/Extension | Hacked Lrn. Terrain Scanner | -6/Extension | Hacked Centrium Wheel | -5/Factory | Hacked Myomer Leg | -5/Factory | Hacked Imp. KE Penetrator | -5/Factory | Scanalyzed Reaction Control System | -5/Factory | Hacked Biomechanical Wings | -5/Factory | Hacked Imp. Overload Regulator | -5/Factory | Hacked Fusion Bomb Launcher | -5/Factory | Hacked Matter Neutralizer | -5/Factory | Hacked Imp. Overload Amplifier | -5/Factory | Hacked Centrium Medium Armor Plating | -5/Factory | Scanalyzed Mic. Fission Core | -5/Factory | Scanalyzed Phase Gun | -5/Factory | Hacked Adv. Cryofiber Web | -5/Factory | Hacked Arm. Heavy Treads | -4/Factory | Hacked Enh. Nova Cannon | -4/Factory | Hacked Adv. Heavy Treads | -4/Factory | Hacked Adv. Powered Armor | -4/Factory | Hacked Imp. Powered Armor | -4/Factory | Hacked Exp. Terrain Scanner | -4/Factory | Hacked Exp. Terrain Scan Processor | -4/Factory | Hacked Exp. Matter Compressor | -3/Research | Scanalyzed System Restoration Module | -3/Research | Scanalyzed Imp. Phase Shifter | -3/Research | Scanalyzed Biometal Heavy Treads | -3/Research | Hacked Adv. Reaction Control System | -2/Research | Hacked Hvy. Regenerative Plating | -2/Testing | Hacked Lgt. Regenerative Plating | -2/Testing | Hacked Cld. Q-thruster | -2/Testing | Hacked Exp. Force Field | -2/Testing | Hacked Imp. Q-thruster | -2/Testing | Hacked Dimensional Manipulator | -2/Testing | Hacked Adv. Heavy Siege Treads | -2/Section 7 | Hacked Stasis Projector | -2/Section 7 | Hacked Exp. Signal Interpreter | -2/Section 7 | Hacked Robot Schematics ------------------ O-16 Technician | -10/Materials | Hacked D-53 Grenadier | -7/Factory | Hacked S-27 Virus | -7/Factory | Hacked L-31 Rogue | -7/Factory | Hacked Y-54 Guardian | -6/Factory | Hacked E-15 Imp | -6/Factory | Hacked B-60 Warrior | -4/Factory | Hacked Y-72 Warden | -2/Research | Hacked Fabricated ------------ O-16 Technician | x1 | -7/Factory L-31 Rogue | x3 | -6/Factory Adv. Signal Interpreter | x2 | -6/Factory Quantum Capacitor | x2 | -6/Factory Y-54 Guardian | x2 | -6/Factory Lrn. Terrain Scanner | x1 | -5/Factory Adv. Powered Armor | x1 | -4/Factory Exp. Terrain Scanner | x1 | -4/Factory Biomechanical Wings | x1 | -4/Factory Exp. Terrain Scan Processor | x1 | -3/Research L-61 Swordsman | x3 | -3/Armory | Preloaded O-16 Technician | x1 | -3/Armory Cld. Q-thruster | x1 | -2/Testing Cld. Q-thruster | x1 | -2/Testing Alien Tech Used ----------------- Core Regenerator Integrated Dissipator Transdimensional Reconstructor Integrated Reactor Integrity Redistributor Sigix Quantum Sheargun LRC Insulator LRC Energy Well LRC Armor Achievements -------------- Collector One Last FU Revolutionary Research War Machine Challenges ------------ None RPGLIKE | -11 -10 -10 -10 -9 -8 -8 -8 -8 -7 -7 -7 -7 -6 -6 -6 -6 -6 -5 -5 -4 -4 -4 -4 -3 -3 -3 -2 -2 -2 -2 -2 -1 -1 -1 -1 --------- Run | Scr Mat Min Exi Min Mat Gar Mat Gar Fac Gar Fac Gar Fac Ext Cet Arc Hub Fac Gar Fac Gar Fac Gar Res Arm Lab Res Tes Gar Sec Gar Acc Gar Acc Com Levels Raised 35 | . 2 . 1 . 2 2 1 1 2 1 2 . 2 2 1 . 1 1 . 2 1 1 1 2 1 . 1 2 . 1 . 1 . . 1 XP Earned 56753 | 3000 3703 600 350 1200 2820 2566 1240 2079 2435 2300 1707 485 3931 1929 1457 797 758 1843 322 2638 1959 781 1226 3430 1243 754 1585 2019 752 882 479 1023 773 277 1410 XP Spent 52095 | 3000 2990 . 1150 . 3325 2000 1850 2175 1250 2300 3675 275 2330 2900 1600 . . 3200 . 1445 3500 1530 1500 . 4300 . 800 3900 . . . . 1100 . . Upgrades 76 | 12 7 . 3 . 4 3 2 2 1 1 5 5 5 1 1 . . 1 . 4 1 6 1 . 2 . 1 7 . . . . 1 . . Power Slot 1 | . . . . . . . . . . . . . . . . . . . . 1 . . . . . . . . . . . . . . . Propulsion Slot 4 | 1 . . . . 1 1 . . . . . . . . . . . . . . . . . . . . . 1 . . . . . . . Utility Slot 12 | 1 2 . . . 1 . 1 1 . 1 1 . . 1 . . . 1 . . 1 . . . 1 . . . . . . . . . . Weapon Slot 3 | 1 . . . . . . . . . . . . . . . . . . . . . . . . . . 1 . . . . . 1 . . Core Integrity 8 | . 1 . . . . . . . . . . 5 2 . . . . . . . . . . . . . . . . . . . . . . Heat Dissipation 6 | 1 . . . . . . . . . . . . . . . . . . . 1 . 2 . . . . . 2 . . . . . . . Energy Generation 3 | . . . . . . 1 . . . . . . 1 . . . . . . . . 1 . . . . . . . . . . . . . Matter Storage 1 | . . . . . . . . . . . . . . . . . . . . . . 1 . . . . . . . . . . . . . Mass Support 4 | 1 . . . . . 1 . . . . . . 1 . 1 . . . . . . . . . . . . . . . . . . . . Inventory Capacity 7 | 2 . . 1 . 1 . . . 1 . . . . . . . . . . . . . 1 . . . . 1 . . . . . . . Sight Range 2 | 1 . . 1 . . . . . . . . . . . . . . . . . . . . . . . . . . . . . . . . Sensor Range 10 | 1 1 . 1 . 1 . 1 1 . . 3 . . . . . . . . 1 . . . . . . . . . . . . . . . Terrain Scan Density 4 | 1 1 . . . . . . . . . . . . . . . . . . . . 1 . . . . . 1 . . . . . . . Ranged Accuracy 3 | . . . . . . . . . . . 1 . 1 . . . . . . 1 . . . . . . . . . . . . . . . Hack Attack % 2 | 1 1 . . . . . . . . . . . . . . . . . . . . . . . . . . . . . . . . . . Hack Defense % 2 | 1 1 . . . . . . . . . . . . . . . . . . . . . . . . . . . . . . . . . . KI Resistance % 1 | . . . . . . . . . . . . . . . . . . . . . . . . . . . . 1 . . . . . . . TH Resistance % 1 | . . . . . . . . . . . . . . . . . . . . . . . . . . . . 1 . . . . . . . KI Damage % 2 | . . . . . . . . . . . . . . . . . . . . . . 1 . . 1 . . . . . . . . . . Protomatter Created 8406 | . 153 . 135 112 220 101 47 93 75 37 116 35 390 288 51 98 130 269 . 161 591 65 419 583 715 . 218 236 983 407 839 . 313 79 447 Integrity Restored 15644 | . 411 126 360 336 475 303 134 182 62 265 228 . 1273 695 250 5 257 683 . 335 1170 128 1317 1533 720 108 18 529 1044 394 759 . 332 7 1205 Core 11978 | . 406 105 360 336 106 288 79 131 41 188 228 . 1273 342 188 . 187 560 . 313 797 40 1021 1024 581 91 14 498 601 285 599 . 227 4 1065 Parts 3666 | . 5 21 . . 369 15 55 51 21 77 . . . 353 62 5 70 123 . 22 373 88 296 509 139 17 4 31 443 109 160 . 105 3 140 Protomatter Decayed 5876 | . 15 161 15 . 49 . . 141 53 . 40 . . 213 251 . 92 38 . . 281 171 6 1096 467 . 193 397 481 580 338 . 195 76 527 Game ------ Seed NuclearDispersionBoosters Manual? 0 Play Time 08:45:22 Cumulative 190.7 hours Start 2020.09.02 @ 12:41:59 End 2020.09.02 @ 23:17:59 Sessions 3 Manual Loads 0 Difficulty Rogue Special Mode Winter2019/RPGLIKE Game No. 74 Rogue 74 Adventurer 0 Explorer 0 Win Type 0 Total 3 Types 2/0/0/1/0/0/0 Lore% 80 Gallery% 75 Achievement% 67 Wizard Run 0 Options --------- ASCII 0 Keyboard 0 Movement Numpad Keybinds 0 Fullscreen 1 Font 18/SmallcapsGlow Map View 76x50 Tactical HUD 1 Map Filters NONE Filters NONE Steam 1 RUN: 09fba3a0-4b6a-4396-acb0-d29d8183ed94